{"text_format":"1","workbook":"xlsx","n_sheets":11,"sheets":["Skema 1","Skema 2","Skema 3","Skema 4","Skema 5","Skema 6","Skema 7","Rapport","Rapport SGH","Afstemning af ikke fordelte","Afstemning øvrige region"],"not_rendered":{"charts":0,"images":0,"macros":1,"external_links":0,"defined_names":20,"comments":0,"pivot_tables":0},"unopened":[],"bounds":{"document_bytes":16777216,"sheet_cells":100000,"rows_first":2000,"rows_last":500,"rows_between":2000,"halvings":0,"cell_chars":16384,"cell_head_chars":4096},"cells_cut":0,"cells_raw":0,"read":"whole","date_system":"1900"}

{"sheet":"Skema 1","index":0,"n_rows":85,"n_cols":9,"rows_kept":85,"cut":false,"hidden":false,"merged":[[1,1,2,8]]}
["Region Midtjylland, somatiske sygehuse."]
[null,"Skema 1: Udgifter og indtægter på sygehusene/enhederne, eksklusiv omkostningssted 0001, Fælleskonto. (1.000 kr.)"]
[]
[]
["Sygehus",null,2023,2022,2021,2020,"Δ2022-2023","% afvigelse","Begrundelse"]
["Regionshospitalet Horsens"]
["Regionshospitalet Horsens","Hovedart 1: Lønninger",918942,971980,932588,849016,{"$f":"IF(ISERROR(C7- D7)=TRUE,\"\",C7 - D7)","v":-53038},{"$f":"IF(ISERROR((((C7- D7)/D7)*100)=TRUE),\"\",IF((((C7- D7)/D7)*100)<-7,FIXED(((C7- D7)/D7)*100, 1,TRUE) &\"%\" & \"▼\",IF((((C7- D7)/D7)*100)>7,FIXED(((C7- D7)/D7)*100, 1,TRUE) &\"%\" &\"▲\",FIXED(((C7- D7)/D7)*100, 1,TRUE)&\"%\")))","v":"-5,5%"}]
["Regionshospitalet Horsens","Hovedart 2: Varekøb",138335,143944,138987,136474,-5609,"-3,9%"]
["Regionshospitalet Horsens","Hovedart 4: Tjenesteydelser m.v. ",65882,87748,93331,75047,-21866,"-24,9%▼"]
["Regionshospitalet Horsens","Hovedart 5: Tilskud og overførsler",1162,1423,774,711,-261,"-18,3%▼"]
["Regionshospitalet Horsens","Hovedart 6: Finansudgifter",null,null,null,null,0,""]
["Regionshospitalet Horsens","Hovedart 7: Indtægter",-21765,-21367,-19422,-23732,-398,"1,9%"]
["Regionshospitalet Horsens","Hovedart 8: Finansindtægter",null,null,null,null,0,""]
["Regionshospitalet Horsens","Hovedart 9: Interne udgifter og indtægter",110331,103797,100380,89103,6534,"6,3%"]
["Regionshospitalet Horsens","I alt",{"$f":"SUMIFS((C7:C14),(A7:A14),A15)","v":1212887},{"$f":"SUMIFS((D7:D14),(A7:A14),A15)","v":1287525},{"$f":"SUMIFS((E7:E14),(A7:A14),A15)","v":1246638},{"$f":"SUMIFS((F7:F14),(A7:A14),A15)","v":1126619},-74638,"-5,8%"]
["Regionshospitalet Gødstrup",null,null,null,null,null,0,""]
["Regionshospitalet Gødstrup","Hovedart 1: Lønninger",2010553,2075623,1977527,1825829,-65070,"-3,1%"]
["Regionshospitalet Gødstrup","Hovedart 2: Varekøb",274006,310955,327526,293822,-36949,"-11,9%▼"]
["Regionshospitalet Gødstrup","Hovedart 4: Tjenesteydelser m.v. ",226091,347405,306631,226909,-121314,"-34,9%▼"]
["Regionshospitalet Gødstrup","Hovedart 5: Tilskud og overførsler",2598,820,-125,0,1778,"216,8%▲"]
["Regionshospitalet Gødstrup","Hovedart 6: Finansudgifter",null,null,null,null,0,""]
["Regionshospitalet Gødstrup","Hovedart 7: Indtægter",-106845,-105855,-117595,-149248,-990,"0,9%"]
["Regionshospitalet Gødstrup","Hovedart 8: Finansindtægter",null,null,null,null,0,""]
["Regionshospitalet Gødstrup","Hovedart 9: Interne udgifter og indtægter",455232,466214,495304,464170,-10982,"-2,4%"]
["Regionshospitalet Gødstrup","I alt",{"$f":"SUMIFS((C7:C24),(A7:A24),A25)","v":2861635},{"$f":"SUMIFS((D7:D24),(A7:A24),A25)","v":3095162},{"$f":"SUMIFS((E7:E24),(A7:A24),A25)","v":2989268},{"$f":"SUMIFS((F7:F24),(A7:A24),A25)","v":2661482},-233527,"-7,5%▼"]
["Hospitalsenhed Midt",null,null,null,null,null,0,""]
["Hospitalsenhed Midt","Hovedart 1: Lønninger",2246601,2250138,2178039,2015310,-3537,"-0,2%"]
["Hospitalsenhed Midt","Hovedart 2: Varekøb",344303,350652,326743,305353,-6349,"-1,8%"]
["Hospitalsenhed Midt","Hovedart 4: Tjenesteydelser m.v. ",231374,289418,265173,223517,-58044,"-20,1%▼"]
["Hospitalsenhed Midt","Hovedart 5: Tilskud og overførsler",2143,2305,1256,1262,-162,"-7,0%▼"]
["Hospitalsenhed Midt","Hovedart 6: Finansudgifter",null,null,null,null,0,""]
["Hospitalsenhed Midt","Hovedart 7: Indtægter",-229028,-248604,-220355,-202710,19576,"-7,9%▼"]
["Hospitalsenhed Midt","Hovedart 8: Finansindtægter",null,null,null,null,0,""]
["Hospitalsenhed Midt","Hovedart 9: Interne udgifter og indtægter",181784,190207,172287,145256,-8423,"-4,4%"]
["Hospitalsenhed Midt","I alt",{"$f":"SUMIFS((C7:C34),(A7:A34),A35)","v":2777177},{"$f":"SUMIFS((D7:D34),(A7:A34),A35)","v":2834116},{"$f":"SUMIFS((E7:E34),(A7:A34),A35)","v":2723143},{"$f":"SUMIFS((F7:F34),(A7:A34),A35)","v":2487988},-56939,"-2,0%"]
["Århus Universitetshospital ",null,null,null,null,null,0,""]
["Århus Universitetshospital ","Hovedart 1: Lønninger",5681603,5582887,5393366,5051137,98716,"1,8%"]
["Århus Universitetshospital ","Hovedart 2: Varekøb",1338732,1347020,1222596,1197666,-8288,"-0,6%"]
["Århus Universitetshospital ","Hovedart 4: Tjenesteydelser m.v. ",1188379,1171526,1110773,1002139,{"$f":"IF(ISERROR(C39- D39)=TRUE,\"\",C39 - D39)","v":16853},{"$f":"IF(ISERROR((((C39- D39)/D39)*100)=TRUE),\"\",IF((((C39- D39)/D39)*100)<-7,FIXED(((C39- D39)/D39)*100, 1,TRUE) &\"%\" & \"▼\",IF((((C39- D39)/D39)*100)>7,FIXED(((C39- D39)/D39)*100, 1,TRUE) &\"%\" &\"▲\",FIXED(((C39- D39)/D39)*100, 1,TRUE)&\"%\")))","v":"1,4%"}]
["Århus Universitetshospital ","Hovedart 5: Tilskud og overførsler",1530,-2885,1055,1072,4415,"-153,0%▼"]
["Århus Universitetshospital ","Hovedart 6: Finansudgifter",null,null,null,null,0,""]
["Århus Universitetshospital ","Hovedart 7: Indtægter",-1831603,-1706869,-1549970,-1453603,-124734,"7,3%▲"]
["Århus Universitetshospital ","Hovedart 8: Finansindtægter",null,null,null,null,0,""]
["Århus Universitetshospital ","Hovedart 9: Interne udgifter og indtægter",1909964,1867764,1671680,1562736,42200,"2,3%"]
["Århus Universitetshospital ","I alt",{"$f":"SUMIFS((C7:C44),(A7:A44),A45)","v":8288605},{"$f":"SUMIFS((D7:D44),(A7:A44),A45)","v":8259443},{"$f":"SUMIFS((E7:E44),(A7:A44),A45)","v":7849500},{"$f":"SUMIFS((F7:F44),(A7:A44),A45)","v":7361147},29162,"0,4%"]
["Regionshospitalet Randers",null,null,null,null,null,0,""]
["Regionshospitalet Randers","Hovedart 1: Lønninger",1016307,1051033,1010071.596,910481,-34726,"-3,3%"]
["Regionshospitalet Randers","Hovedart 2: Varekøb",156367,165171,157288.712,149608,-8804,"-5,3%"]
["Regionshospitalet Randers","Hovedart 4: Tjenesteydelser m.v. ",105733,114067,113115.715,79446,-8334,"-7,3%▼"]
["Regionshospitalet Randers","Hovedart 5: Tilskud og overførsler",1705,2437,1052.606,1005,-732,"-30,0%▼"]
["Regionshospitalet Randers","Hovedart 6: Finansudgifter",null,null,null,null,0,""]
["Regionshospitalet Randers","Hovedart 7: Indtægter",-33772,-29626,-28116.794999999998,-26535,-4146,"14,0%▲"]
["Regionshospitalet Randers","Hovedart 8: Finansindtægter",null,null,null,null,0,""]
["Regionshospitalet Randers","Hovedart 9: Interne udgifter og indtægter",92279,87220,81909.762000000002,82127,5059,"5,8%"]
["Regionshospitalet Randers","I alt",{"$f":"SUMIFS((C7:C54),(A7:A54),A55)","v":1338619},{"$f":"SUMIFS((D7:D54),(A7:A54),A55)","v":1390302},{"$f":"SUMIFS((E7:E54),(A7:A54),A55)","v":1335321.5960000001},{"$f":"SUMIFS((F7:F54),(A7:A54),A55)","v":1196132},-51683,"-3,7%"]
["Regionshospitalet Hammel Neurocenter",null,null,null,null,null,0,""]
["Regionshospitalet Hammel Neurocenter","Hovedart 1: Lønninger",null,null,null,null,0,""]
["Regionshospitalet Hammel Neurocenter","Hovedart 2: Varekøb",null,null,null,null,0,""]
["Regionshospitalet Hammel Neurocenter","Hovedart 4: Tjenesteydelser m.v. ",null,null,null,null,0,""]
["Regionshospitalet Hammel Neurocenter","Hovedart 5: Tilskud og overførsler",null,null,null,null,0,""]
["Regionshospitalet Hammel Neurocenter","Hovedart 6: Finansudgifter",null,null,null,null,0,""]
["Regionshospitalet Hammel Neurocenter","Hovedart 7: Indtægter",null,null,null,null,0,""]
["Regionshospitalet Hammel Neurocenter","Hovedart 8: Finansindtægter",null,null,null,null,0,""]
["Regionshospitalet Hammel Neurocenter","Hovedart 9: Interne udgifter og indtægter",null,null,null,null,0,""]
["Regionshospitalet Hammel Neurocenter","I alt",{"$f":"SUMIFS((C7:C64),(A7:A64),A65)","v":0},{"$f":"SUMIFS((D7:D64),(A7:A64),A65)","v":0},{"$f":"SUMIFS((E7:E64),(A7:A64),A65)","v":0},{"$f":"SUMIFS((F7:F64),(A7:A64),A65)","v":0},0,""]
["Øvrige i Region Midtjylland",null,null,null,null,null,0,""]
["Øvrige i Region Midtjylland","Hovedart 1: Lønninger",null,null,null,null,0,""]
["Øvrige i Region Midtjylland","Hovedart 2: Varekøb",null,null,null,null,0,""]
["Øvrige i Region Midtjylland","Hovedart 4: Tjenesteydelser m.v. ",null,null,null,null,0,""]
["Øvrige i Region Midtjylland","Hovedart 5: Tilskud og overførsler",null,null,null,null,0,""]
["Øvrige i Region Midtjylland","Hovedart 6: Finansudgifter",null,null,null,null,{"$f":"IF(ISERROR(C71- D71)=TRUE,\"\",C71 - D71)","v":0},{"$f":"IF(ISERROR((((C71- D71)/D71)*100)=TRUE),\"\",IF((((C71- D71)/D71)*100)<-7,FIXED(((C71- D71)/D71)*100, 1,TRUE) &\"%\" & \"▼\",IF((((C71- D71)/D71)*100)>7,FIXED(((C71- D71)/D71)*100, 1,TRUE) &\"%\" &\"▲\",FIXED(((C71- D71)/D71)*100, 1,TRUE)&\"%\")))","v":""}]
["Øvrige i Region Midtjylland","Hovedart 7: Indtægter",null,null,null,null,0,""]
["Øvrige i Region Midtjylland","Hovedart 8: Finansindtægter",null,null,null,null,0,""]
["Øvrige i Region Midtjylland","Hovedart 9: Interne udgifter og indtægter",null,null,null,null,0,""]
["Øvrige i Region Midtjylland","I alt",{"$f":"SUMIFS((C7:C74),(A7:A74),A75)","v":0},{"$f":"SUMIFS((D7:D74),(A7:A74),A75)","v":0},{"$f":"SUMIFS((E7:E74),(A7:A74),A75)","v":0},{"$f":"SUMIFS((F7:F74),(A7:A74),A75)","v":0},0,""]
["Ikke fordelte udgifter og indtægter",null,null,null,null,null,0,""]
["Ikke fordelte udgifter og indtægter","Hovedart 1: Lønninger",null,null,null,null,0,""]
["Ikke fordelte udgifter og indtægter","Hovedart 2: Varekøb",null,null,null,null,0,""]
["Ikke fordelte udgifter og indtægter","Hovedart 4: Tjenesteydelser m.v. ",null,null,null,null,0,""]
["Ikke fordelte udgifter og indtægter","Hovedart 5: Tilskud og overførsler",null,null,null,null,0,""]
["Ikke fordelte udgifter og indtægter","Hovedart 6: Finansudgifter",null,null,null,null,0,""]
["Ikke fordelte udgifter og indtægter","Hovedart 7: Indtægter",null,null,null,null,0,""]
["Ikke fordelte udgifter og indtægter","Hovedart 8: Finansindtægter",null,null,null,null,0,""]
["Ikke fordelte udgifter og indtægter","Hovedart 9: Interne udgifter og indtægter",null,null,null,null,0,""]
["Ikke fordelte udgifter og indtægter","I alt",{"$f":"SUMIFS((C7:C84),(A7:A84),A85)","v":0},{"$f":"SUMIFS((D7:D84),(A7:A84),A85)","v":0},{"$f":"SUMIFS((E7:E84),(A7:A84),A85)","v":0},{"$f":"SUMIFS((F7:F84),(A7:A84),A85)","v":0},0,""]

{"sheet":"Skema 2","index":1,"n_rows":85,"n_cols":9,"rows_kept":85,"cut":false,"hidden":false,"merged":[[1,1,2,8]]}
["Region Midtjylland, somatiske sygehuse."]
[null,"Skema 2: Fællesudgifter og -indtægter vedrørende sygehusene.\n(1.000 kr.)"]
[]
[]
["Sygehus",null,2023,2022,2021,2020,"Δ2022-2023","% afvigelse","Begrundelse"]
["Regionshospitalet Horsens"]
["Regionshospitalet Horsens","Hovedart 1: Lønninger",45959,46799,40740,40398,{"$f":"IF(ISERROR(C7- D7)=TRUE,\"\",C7 - D7)","v":-840},{"$f":"IF(ISERROR((((C7- D7)/D7)*100)=TRUE),\"\",IF((((C7- D7)/D7)*100)<-7,FIXED(((C7- D7)/D7)*100, 1,TRUE) &\"%\" & \"▼\",IF((((C7- D7)/D7)*100)>7,FIXED(((C7- D7)/D7)*100, 1,TRUE) &\"%\" &\"▲\",FIXED(((C7- D7)/D7)*100, 1,TRUE)&\"%\")))","v":"-1,8%"}]
["Regionshospitalet Horsens","Hovedart 2: Varekøb",185038,185287,182634,181188,-249,"-0,1%"]
["Regionshospitalet Horsens","Hovedart 4: Tjenesteydelser m.v. ",34780,32434,28989,28053,2346,"7,2%▲"]
["Regionshospitalet Horsens","Hovedart 5: Tilskud og overførsler",-36,null,null,null,-36,""]
["Regionshospitalet Horsens","Hovedart 6: Finansudgifter",null,null,null,null,0,""]
["Regionshospitalet Horsens","Hovedart 7: Indtægter",-17135,-12080,-6239,-5964,-5055,"41,8%▲"]
["Regionshospitalet Horsens","Hovedart 8: Finansindtægter",null,null,null,null,0,""]
["Regionshospitalet Horsens","Hovedart 9: Interne udgifter og indtægter",-211123,-211742,-204744,-199167,619,"-0,3%"]
["Regionshospitalet Horsens","I alt",{"$f":"SUMIFS((C7:C14),(A7:A14),A15)","v":37483},{"$f":"SUMIFS((D7:D14),(A7:A14),A15)","v":40698},{"$f":"SUMIFS((E7:E14),(A7:A14),A15)","v":41380},{"$f":"SUMIFS((F7:F14),(A7:A14),A15)","v":44508},-3215,"-7,9%▼"]
["Regionshospitalet Gødstrup",null,null,null,null,null,0,""]
["Regionshospitalet Gødstrup","Hovedart 1: Lønninger",100545,105313,90715,87166,-4768,"-4,5%"]
["Regionshospitalet Gødstrup","Hovedart 2: Varekøb",404809,416928,407396,390609,-12119,"-2,9%"]
["Regionshospitalet Gødstrup","Hovedart 4: Tjenesteydelser m.v. ",76468,71208,64548,60530,5260,"7,4%▲"]
["Regionshospitalet Gødstrup","Hovedart 5: Tilskud og overførsler",-79,1,null,null,-80,"-8000,0%▼"]
["Regionshospitalet Gødstrup","Hovedart 6: Finansudgifter",null,null,null,null,0,""]
["Regionshospitalet Gødstrup","Hovedart 7: Indtægter",-37487,-27184,-13891,-12869,-10303,"37,9%▲"]
["Regionshospitalet Gødstrup","Hovedart 8: Finansindtægter",null,null,null,null,0,""]
["Regionshospitalet Gødstrup","Hovedart 9: Interne udgifter og indtægter",-461875,-476333,-455851,-429741,14458,"-3,0%"]
["Regionshospitalet Gødstrup","I alt",{"$f":"SUMIFS((C7:C24),(A7:A24),A25)","v":82381},{"$f":"SUMIFS((D7:D24),(A7:A24),A25)","v":89933},{"$f":"SUMIFS((E7:E24),(A7:A24),A25)","v":92917},{"$f":"SUMIFS((F7:F24),(A7:A24),A25)","v":95695},-7552,"-8,4%▼"]
["Hospitalsenhed Midt",null,null,null,null,null,0,""]
["Hospitalsenhed Midt","Hovedart 1: Lønninger",111131,109260,93780,93908,1871,"1,7%"]
["Hospitalsenhed Midt","Hovedart 2: Varekøb",447430,431768,419949,420979,15662,"3,6%"]
["Hospitalsenhed Midt","Hovedart 4: Tjenesteydelser m.v. ",84244,75634,66729,65212,8610,"11,4%▲"]
["Hospitalsenhed Midt","Hovedart 5: Tilskud og overførsler",-87,1,null,null,-88,"-8800,0%▼"]
["Hospitalsenhed Midt","Hovedart 6: Finansudgifter",null,null,null,null,0,""]
["Hospitalsenhed Midt","Hovedart 7: Indtægter",-41434,-28203,-14361,-13864,-13231,"46,9%▲"]
["Hospitalsenhed Midt","Hovedart 8: Finansindtægter",null,null,null,null,0,""]
["Hospitalsenhed Midt","Hovedart 9: Interne udgifter og indtægter",-510452,-494348,-471300,-462980,-16104,"3,3%"]
["Hospitalsenhed Midt","I alt",{"$f":"SUMIFS((C7:C34),(A7:A34),A35)","v":90832},{"$f":"SUMIFS((D7:D34),(A7:A34),A35)","v":94112},{"$f":"SUMIFS((E7:E34),(A7:A34),A35)","v":94797},{"$f":"SUMIFS((F7:F34),(A7:A34),A35)","v":103255},-3280,"-3,5%"]
["Århus Universitetshospital ",null,null,null,null,null,0,""]
["Århus Universitetshospital ","Hovedart 1: Lønninger",311377,293578,251144,248862,17799,"6,1%"]
["Århus Universitetshospital ","Hovedart 2: Varekøb",1253643,1161551,1126305,1117857,92092,"7,9%▲"]
["Århus Universitetshospital ","Hovedart 4: Tjenesteydelser m.v. ",238820,208974,178744,172817,{"$f":"IF(ISERROR(C39- D39)=TRUE,\"\",C39 - D39)","v":29846},{"$f":"IF(ISERROR((((C39- D39)/D39)*100)=TRUE),\"\",IF((((C39- D39)/D39)*100)<-7,FIXED(((C39- D39)/D39)*100, 1,TRUE) &\"%\" & \"▼\",IF((((C39- D39)/D39)*100)>7,FIXED(((C39- D39)/D39)*100, 1,TRUE) &\"%\" &\"▲\",FIXED(((C39- D39)/D39)*100, 1,TRUE)&\"%\")))","v":"14,3%▲"}]
["Århus Universitetshospital ","Hovedart 5: Tilskud og overførsler",-245,3,null,null,-248,"-8266,7%▼"]
["Århus Universitetshospital ","Hovedart 6: Finansudgifter",null,null,null,null,0,""]
["Århus Universitetshospital ","Hovedart 7: Indtægter",-116092,-75781,-105656,-94091,-40311,"53,2%▲"]
["Århus Universitetshospital ","Hovedart 8: Finansindtægter",null,null,null,null,0,""]
["Århus Universitetshospital ","Hovedart 9: Interne udgifter og indtægter",-1430369,-1328274,-1137366,-1111401,-102095,"7,7%▲"]
["Århus Universitetshospital ","I alt",{"$f":"SUMIFS((C7:C44),(A7:A44),A45)","v":257134},{"$f":"SUMIFS((D7:D44),(A7:A44),A45)","v":260051},{"$f":"SUMIFS((E7:E44),(A7:A44),A45)","v":313171},{"$f":"SUMIFS((F7:F44),(A7:A44),A45)","v":334044},-2917,"-1,1%"]
["Regionshospitalet Randers",null,null,null,null,null,0,""]
["Regionshospitalet Randers","Hovedart 1: Lønninger",51536,51084,44127.565999999999,43254,452,"0,9%"]
["Regionshospitalet Randers","Hovedart 2: Varekøb",207492,201788,197770.72200000001,193917,5704,"2,8%"]
["Regionshospitalet Randers","Hovedart 4: Tjenesteydelser m.v. ",39000,35478,31354.986000000001,30037,3522,"9,9%▲"]
["Regionshospitalet Randers","Hovedart 5: Tilskud og overførsler",-41,1,null,null,-42,"-4200,0%▼"]
["Regionshospitalet Randers","Hovedart 6: Finansudgifter",null,null,null,null,0,""]
["Regionshospitalet Randers","Hovedart 7: Indtægter",-19215,-13186,-6757.3239999999996,-6386,-6029,"45,7%▲"]
["Regionshospitalet Randers","Hovedart 8: Finansindtægter",null,null,null,null,0,""]
["Regionshospitalet Randers","Hovedart 9: Interne udgifter og indtægter",-236742,-231127,-221766.288,-213247,-5615,"2,4%"]
["Regionshospitalet Randers","I alt",{"$f":"SUMIFS((C7:C54),(A7:A54),A55)","v":42030},{"$f":"SUMIFS((D7:D54),(A7:A54),A55)","v":44038},{"$f":"SUMIFS((E7:E54),(A7:A54),A55)","v":44729.661999999953},{"$f":"SUMIFS((F7:F54),(A7:A54),A55)","v":47575},-2008,"-4,6%"]
["Regionshospitalet Hammel Neurocenter",null,null,null,null,null,0,""]
["Regionshospitalet Hammel Neurocenter","Hovedart 1: Lønninger",null,null,null,null,0,""]
["Regionshospitalet Hammel Neurocenter","Hovedart 2: Varekøb",null,null,null,null,0,""]
["Regionshospitalet Hammel Neurocenter","Hovedart 4: Tjenesteydelser m.v. ",null,null,null,null,0,""]
["Regionshospitalet Hammel Neurocenter","Hovedart 5: Tilskud og overførsler",null,null,null,null,0,""]
["Regionshospitalet Hammel Neurocenter","Hovedart 6: Finansudgifter",null,null,null,null,0,""]
["Regionshospitalet Hammel Neurocenter","Hovedart 7: Indtægter",null,null,null,null,0,""]
["Regionshospitalet Hammel Neurocenter","Hovedart 8: Finansindtægter",null,null,null,null,0,""]
["Regionshospitalet Hammel Neurocenter","Hovedart 9: Interne udgifter og indtægter",null,null,null,null,0,""]
["Regionshospitalet Hammel Neurocenter","I alt",{"$f":"SUMIFS((C7:C64),(A7:A64),A65)","v":0},{"$f":"SUMIFS((D7:D64),(A7:A64),A65)","v":0},{"$f":"SUMIFS((E7:E64),(A7:A64),A65)","v":0},{"$f":"SUMIFS((F7:F64),(A7:A64),A65)","v":0},0,""]
["Øvrige i Region Midtjylland",null,null,null,null,null,0,""]
["Øvrige i Region Midtjylland","Hovedart 1: Lønninger",null,null,null,null,0,""]
["Øvrige i Region Midtjylland","Hovedart 2: Varekøb",null,null,null,null,0,""]
["Øvrige i Region Midtjylland","Hovedart 4: Tjenesteydelser m.v. ",null,null,null,null,0,""]
["Øvrige i Region Midtjylland","Hovedart 5: Tilskud og overførsler",null,null,null,null,0,""]
["Øvrige i Region Midtjylland","Hovedart 6: Finansudgifter",null,null,null,null,{"$f":"IF(ISERROR(C71- D71)=TRUE,\"\",C71 - D71)","v":0},{"$f":"IF(ISERROR((((C71- D71)/D71)*100)=TRUE),\"\",IF((((C71- D71)/D71)*100)<-7,FIXED(((C71- D71)/D71)*100, 1,TRUE) &\"%\" & \"▼\",IF((((C71- D71)/D71)*100)>7,FIXED(((C71- D71)/D71)*100, 1,TRUE) &\"%\" &\"▲\",FIXED(((C71- D71)/D71)*100, 1,TRUE)&\"%\")))","v":""}]
["Øvrige i Region Midtjylland","Hovedart 7: Indtægter",null,null,null,null,0,""]
["Øvrige i Region Midtjylland","Hovedart 8: Finansindtægter",null,null,null,null,0,""]
["Øvrige i Region Midtjylland","Hovedart 9: Interne udgifter og indtægter",null,null,null,null,0,""]
["Øvrige i Region Midtjylland","I alt",{"$f":"SUMIFS((C7:C74),(A7:A74),A75)","v":0},{"$f":"SUMIFS((D7:D74),(A7:A74),A75)","v":0},{"$f":"SUMIFS((E7:E74),(A7:A74),A75)","v":0},{"$f":"SUMIFS((F7:F74),(A7:A74),A75)","v":0},0,""]
["Ikke fordelte udgifter og indtægter",null,null,null,null,null,0,""]
["Ikke fordelte udgifter og indtægter","Hovedart 1: Lønninger",370710.22,354777,335166,283048,15933.219999999972,"4,5%"]
["Ikke fordelte udgifter og indtægter","Hovedart 2: Varekøb",45285.406000000003,663881,780398,504938,-618595.59400000004,"-93,2%▼"]
["Ikke fordelte udgifter og indtægter","Hovedart 4: Tjenesteydelser m.v. ",1568700.574,3191017,8850881,2028977,-1622316.426,"-50,8%▼"]
["Ikke fordelte udgifter og indtægter","Hovedart 5: Tilskud og overførsler",222759.63200000001,187676,193589.606,154022,35083.632000000012,"18,7%▲"]
["Ikke fordelte udgifter og indtægter","Hovedart 6: Finansudgifter",null,null,null,null,0,""]
["Ikke fordelte udgifter og indtægter","Hovedart 7: Indtægter",-515951.95600000001,-3108987,-8914726,-502610,2593035.0439999998,"-83,4%▼"]
["Ikke fordelte udgifter og indtægter","Hovedart 8: Finansindtægter",null,null,null,-658400,0,""]
["Ikke fordelte udgifter og indtægter","Hovedart 9: Interne udgifter og indtægter",10658.343000000001,-2597,-18544,17145,13255.343000000001,"-510,4%▼"]
["Ikke fordelte udgifter og indtægter","I alt",{"$f":"SUMIFS((C7:C84),(A7:A84),A85)","v":1702162.219},{"$f":"SUMIFS((D7:D84),(A7:A84),A85)","v":1285767},{"$f":"SUMIFS((E7:E84),(A7:A84),A85)","v":1226764.6060000006},{"$f":"SUMIFS((F7:F84),(A7:A84),A85)","v":1827120},416395.21900000004,"32,4%▲"]

{"sheet":"Skema 3","index":2,"n_rows":61,"n_cols":9,"rows_kept":61,"cut":false,"hidden":false,"merged":[[1,1,2,8]]}
["Region Midtjylland, somatiske sygehuse."]
[null,"Skema 3:Regionale fællesudgifter og -indtægter. (1.000 kr.)"]
[]
[]
["Sygehus",null,2023,2022,2021,2020,"Δ2022-2023","% afvigelse","Begrundelse"]
["Regionshospitalet Horsens"]
["Regionshospitalet Horsens","1.70.50: Andel af fællesudgifter",25837,27759,24511,24736,{"$f":"IF(ISERROR(C7- D7)=TRUE,\"\",C7 - D7)","v":-1922},{"$f":"IF(ISERROR((((C7- D7)/D7)*100)=TRUE),\"\",IF((((C7- D7)/D7)*100)<-7,FIXED(((C7- D7)/D7)*100, 1,TRUE) &\"%\" & \"▼\",IF((((C7- D7)/D7)*100)>7,FIXED(((C7- D7)/D7)*100, 1,TRUE) &\"%\" &\"▲\",FIXED(((C7- D7)/D7)*100, 1,TRUE)&\"%\")))","v":"-6,9%"}]
["Regionshospitalet Horsens","1.60.40: Andel af central administration af sundhed (til og med 2019)",null,null,null,null,0,""]
["Regionshospitalet Horsens","1.60.41: Andel af øvrige udgifter og indtægter",null,null,null,null,0,""]
["Regionshospitalet Horsens","1.50.33: Andel af central administration af sundhed (ekskl. psykiatri)",null,null,null,null,0,""]
["Regionshospitalet Horsens","1.50.35: Administration af det psykiatriske område (kun central del)",null,null,null,null,0,""]
["Regionshospitalet Horsens","I alt",{"$f":"SUMIFS((C7:C11),(A7:A11),A12)","v":25837},{"$f":"SUMIFS((D7:D11),(A7:A11),A12)","v":27759},{"$f":"SUMIFS((E7:E11),(A7:A11),A12)","v":24511},{"$f":"SUMIFS((F7:F11),(A7:A11),A12)","v":24736},-1922,"-6,9%"]
["Regionshospitalet Gødstrup",null,null,null,null,null,0,""]
["Regionshospitalet Gødstrup","1.70.50: Andel af fællesudgifter",56524,62467,54579,53373,-5943,"-9,5%▼"]
["Regionshospitalet Gødstrup","1.60.40: Andel af central administration af sundhed (til og med 2019)",null,null,null,null,0,""]
["Regionshospitalet Gødstrup","1.60.41: Andel af øvrige udgifter og indtægter",null,null,null,null,0,""]
["Regionshospitalet Gødstrup","1.50.33: Andel af central administration af sundhed (ekskl. psykiatri)",null,null,null,null,0,""]
["Regionshospitalet Gødstrup","1.50.35: Administration af det psykiatriske område (kun central del)",null,null,null,null,0,""]
["Regionshospitalet Gødstrup","I alt",{"$f":"SUMIFS((C7:C18),(A7:A18),A19)","v":56524},{"$f":"SUMIFS((D7:D18),(A7:A18),A19)","v":62467},{"$f":"SUMIFS((E7:E18),(A7:A18),A19)","v":54579},{"$f":"SUMIFS((F7:F18),(A7:A18),A19)","v":53373},-5943,"-9,5%▼"]
["Hospitalsenhed Midt",null,null,null,null,null,0,""]
["Hospitalsenhed Midt","1.70.50: Andel af fællesudgifter",62475,64809,56423,57501,-2334,"-3,6%"]
["Hospitalsenhed Midt","1.60.40: Andel af central administration af sundhed (til og med 2019)",null,null,null,null,0,""]
["Hospitalsenhed Midt","1.60.41: Andel af øvrige udgifter og indtægter",null,null,null,null,0,""]
["Hospitalsenhed Midt","1.50.33: Andel af central administration af sundhed (ekskl. psykiatri)",null,null,null,null,0,""]
["Hospitalsenhed Midt","1.50.35: Administration af det psykiatriske område (kun central del)",null,null,null,null,0,""]
["Hospitalsenhed Midt","I alt",{"$f":"SUMIFS((C7:C25),(A7:A25),A26)","v":62475},{"$f":"SUMIFS((D7:D25),(A7:A25),A26)","v":64809},{"$f":"SUMIFS((E7:E25),(A7:A25),A26)","v":56423},{"$f":"SUMIFS((F7:F25),(A7:A25),A26)","v":57501},-2334,"-3,6%"]
["Århus Universitetshospital",null,null,null,null,null,0,""]
["Århus Universitetshospital","1.70.50: Andel af fællesudgifter",175048,174138,151100,152382,910,"0,5%"]
["Århus Universitetshospital","1.60.40: Andel af central administration af sundhed (til og med 2019)",null,null,null,null,0,""]
["Århus Universitetshospital","1.60.41: Andel af øvrige udgifter og indtægter",null,null,null,null,0,""]
["Århus Universitetshospital","1.50.33: Andel af central administration af sundhed (ekskl. psykiatri)",null,null,null,null,0,""]
["Århus Universitetshospital","1.50.35: Administration af det psykiatriske område (kun central del)",null,null,null,null,0,""]
["Århus Universitetshospital","I alt",{"$f":"SUMIFS((C7:C32),(A7:A32),A33)","v":175048},{"$f":"SUMIFS((D7:D32),(A7:A32),A33)","v":174138},{"$f":"SUMIFS((E7:E32),(A7:A32),A33)","v":151100},{"$f":"SUMIFS((F7:F32),(A7:A32),A33)","v":152382},910,"0,5%"]
["Regionshospitalet Randers",null,null,null,null,null,0,""]
["Regionshospitalet Randers","1.70.50: Andel af fællesudgifter",28972,30301,26549,26485,-1329,"-4,4%"]
["Regionshospitalet Randers","1.60.40: Andel af central administration af sundhed (til og med 2019)",null,null,null,null,0,""]
["Regionshospitalet Randers","1.60.41: Andel af øvrige udgifter og indtægter",null,null,null,null,0,""]
["Regionshospitalet Randers","1.50.33: Andel af central administration af sundhed (ekskl. psykiatri)",null,null,null,null,0,""]
["Regionshospitalet Randers","1.50.35: Administration af det psykiatriske område (kun central del)",null,null,null,null,{"$f":"IF(ISERROR(C39- D39)=TRUE,\"\",C39 - D39)","v":0},{"$f":"IF(ISERROR((((C39- D39)/D39)*100)=TRUE),\"\",IF((((C39- D39)/D39)*100)<-7,FIXED(((C39- D39)/D39)*100, 1,TRUE) &\"%\" & \"▼\",IF((((C39- D39)/D39)*100)>7,FIXED(((C39- D39)/D39)*100, 1,TRUE) &\"%\" &\"▲\",FIXED(((C39- D39)/D39)*100, 1,TRUE)&\"%\")))","v":""}]
["Regionshospitalet Randers","I alt",{"$f":"SUMIFS((C7:C39),(A7:A39),A40)","v":28972},{"$f":"SUMIFS((D7:D39),(A7:A39),A40)","v":30301},{"$f":"SUMIFS((E7:E39),(A7:A39),A40)","v":26549},{"$f":"SUMIFS((F7:F39),(A7:A39),A40)","v":26485},-1329,"-4,4%"]
["Regionshospitalet Hammel Neurocenter",null,null,null,null,null,0,""]
["Regionshospitalet Hammel Neurocenter","1.70.50: Andel af fællesudgifter",null,null,null,null,0,""]
["Regionshospitalet Hammel Neurocenter","1.60.40: Andel af central administration af sundhed (til og med 2019)",null,null,null,null,0,""]
["Regionshospitalet Hammel Neurocenter","1.60.41: Andel af øvrige udgifter og indtægter",null,null,null,null,0,""]
["Regionshospitalet Hammel Neurocenter","1.50.33: Andel af central administration af sundhed (ekskl. psykiatri)",null,null,null,null,0,""]
["Regionshospitalet Hammel Neurocenter","1.50.35: Administration af det psykiatriske område (kun central del)",null,null,null,null,0,""]
["Regionshospitalet Hammel Neurocenter","I alt",{"$f":"SUMIFS((C7:C46),(A7:A46),A47)","v":0},{"$f":"SUMIFS((D7:D46),(A7:A46),A47)","v":0},{"$f":"SUMIFS((E7:E46),(A7:A46),A47)","v":0},{"$f":"SUMIFS((F7:F46),(A7:A46),A47)","v":0},0,""]
["Øvrige i Region Midtjylland",null,null,null,null,null,0,""]
["Øvrige i Region Midtjylland","1.70.50: Andel af fællesudgifter",null,null,null,null,0,""]
["Øvrige i Region Midtjylland","1.60.40: Andel af central administration af sundhed (til og med 2019)",null,null,null,null,0,""]
["Øvrige i Region Midtjylland","1.60.41: Andel af øvrige udgifter og indtægter",null,null,null,null,0,""]
["Øvrige i Region Midtjylland","1.50.33: Andel af central administration af sundhed (ekskl. psykiatri)",null,null,null,null,0,""]
["Øvrige i Region Midtjylland","1.50.35: Administration af det psykiatriske område (kun central del)",null,null,null,null,0,""]
["Øvrige i Region Midtjylland","I alt",{"$f":"SUMIFS((C7:C53),(A7:A53),A54)","v":0},{"$f":"SUMIFS((D7:D53),(A7:A53),A54)","v":0},{"$f":"SUMIFS((E7:E53),(A7:A53),A54)","v":0},{"$f":"SUMIFS((F7:F53),(A7:A53),A54)","v":0},0,""]
["Ikke fordelte udgifter og indtægter",null,null,null,null,null,0,""]
["Ikke fordelte udgifter og indtægter","1.70.50: Andel af fællesudgifter",171243.81099999999,168045,165562,161137,3198.810999999987,"1,9%"]
["Ikke fordelte udgifter og indtægter","1.60.40: Andel af central administration af sundhed (til og med 2019)",null,null,null,null,0,""]
["Ikke fordelte udgifter og indtægter","1.60.41: Andel af øvrige udgifter og indtægter",36787.868999999999,41438,40012,42122,-4650.1310000000012,"-11,2%▼"]
["Ikke fordelte udgifter og indtægter","1.50.33: Andel af central administration af sundhed (ekskl. psykiatri)",null,null,null,null,0,""]
["Ikke fordelte udgifter og indtægter","1.50.35: Administration af det psykiatriske område (kun central del)",null,null,null,null,0,""]
["Ikke fordelte udgifter og indtægter","I alt",{"$f":"SUMIFS((C7:C60),(A7:A60),A61)","v":208031.68},{"$f":"SUMIFS((D7:D60),(A7:A60),A61)","v":209483},{"$f":"SUMIFS((E7:E60),(A7:A60),A61)","v":205574},{"$f":"SUMIFS((F7:F60),(A7:A60),A61)","v":203259},-1451.320000000007,"-0,7%"]

{"sheet":"Skema 4","index":3,"n_rows":45,"n_cols":9,"rows_kept":45,"cut":false,"hidden":false,"merged":[[1,1,2,8]]}
["Region Midtjylland, somatiske sygehuse."]
[null,"Skema 4: Udgifter og indtægter til og fra psykiatriske afdelinger konteret på somatiske sygehuse. (1.000 kr.)"]
[]
[]
["Sygehus",null,2023,2022,2021,2020,"Δ2022-2023","% afvigelse","Begrundelse"]
["Regionshospitalet Horsens"]
["Regionshospitalet Horsens","Korrektion",null,null,null,null,{"$f":"IF(ISERROR(C7- D7)=TRUE,\"\",C7 - D7)","v":0},{"$f":"IF(ISERROR((((C7- D7)/D7)*100)=TRUE),\"\",IF((((C7- D7)/D7)*100)<-7,FIXED(((C7- D7)/D7)*100, 1,TRUE) &\"%\" & \"▼\",IF((((C7- D7)/D7)*100)>7,FIXED(((C7- D7)/D7)*100, 1,TRUE) &\"%\" &\"▲\",FIXED(((C7- D7)/D7)*100, 1,TRUE)&\"%\")))","v":""}]
["Regionshospitalet Horsens","Lønudg. på psyk. afd.,somatiske sygehuse",null,null,null,null,0,""]
["Regionshospitalet Horsens","Øvrige udg. til psyk. afd.,somatiske sygehuse",null,null,null,null,0,""]
["Regionshospitalet Horsens","I alt",{"$f":"SUMIFS((C7:C9),(A7:A9),A10)","v":0},{"$f":"SUMIFS((D7:D9),(A7:A9),A10)","v":0},{"$f":"SUMIFS((E7:E9),(A7:A9),A10)","v":0},{"$f":"SUMIFS((F7:F9),(A7:A9),A10)","v":0},0,""]
["Regionshospitalet Gødstrup",null,null,null,null,null,0,""]
["Regionshospitalet Gødstrup","Korrektion",null,null,null,null,0,""]
["Regionshospitalet Gødstrup","Lønudg. på psyk. afd.,somatiske sygehuse",null,null,null,null,0,""]
["Regionshospitalet Gødstrup","Øvrige udg. til psyk. afd.,somatiske sygehuse",null,null,null,null,0,""]
["Regionshospitalet Gødstrup","I alt",{"$f":"SUMIFS((C7:C14),(A7:A14),A15)","v":0},{"$f":"SUMIFS((D7:D14),(A7:A14),A15)","v":0},{"$f":"SUMIFS((E7:E14),(A7:A14),A15)","v":0},{"$f":"SUMIFS((F7:F14),(A7:A14),A15)","v":0},0,""]
["Hospitalsenhed Midt",null,null,null,null,null,0,""]
["Hospitalsenhed Midt","Korrektion",null,null,null,null,0,""]
["Hospitalsenhed Midt","Lønudg. på psyk. afd.,somatiske sygehuse",null,null,null,null,0,""]
["Hospitalsenhed Midt","Øvrige udg. til psyk. afd.,somatiske sygehuse",null,null,null,null,0,""]
["Hospitalsenhed Midt","I alt",{"$f":"SUMIFS((C7:C19),(A7:A19),A20)","v":0},{"$f":"SUMIFS((D7:D19),(A7:A19),A20)","v":0},{"$f":"SUMIFS((E7:E19),(A7:A19),A20)","v":0},{"$f":"SUMIFS((F7:F19),(A7:A19),A20)","v":0},0,""]
["Århus Universitetshospital",null,null,null,null,null,0,""]
["Århus Universitetshospital","Korrektion",null,null,null,null,0,""]
["Århus Universitetshospital","Lønudg. på psyk. afd.,somatiske sygehuse",null,null,null,null,0,""]
["Århus Universitetshospital","Øvrige udg. til psyk. afd.,somatiske sygehuse",null,null,null,null,0,""]
["Århus Universitetshospital","I alt",{"$f":"SUMIFS((C7:C24),(A7:A24),A25)","v":0},{"$f":"SUMIFS((D7:D24),(A7:A24),A25)","v":0},{"$f":"SUMIFS((E7:E24),(A7:A24),A25)","v":0},{"$f":"SUMIFS((F7:F24),(A7:A24),A25)","v":0},0,""]
["Regionshospitalet Randers",null,null,null,null,null,0,""]
["Regionshospitalet Randers","Korrektion",null,null,null,null,0,""]
["Regionshospitalet Randers","Lønudg. på psyk. afd.,somatiske sygehuse",null,null,null,null,0,""]
["Regionshospitalet Randers","Øvrige udg. til psyk. afd.,somatiske sygehuse",null,null,null,null,0,""]
["Regionshospitalet Randers","I alt",{"$f":"SUMIFS((C7:C29),(A7:A29),A30)","v":0},{"$f":"SUMIFS((D7:D29),(A7:A29),A30)","v":0},{"$f":"SUMIFS((E7:E29),(A7:A29),A30)","v":0},{"$f":"SUMIFS((F7:F29),(A7:A29),A30)","v":0},0,""]
["Regionshospitalet Hammel Neurocenter",null,null,null,null,null,0,""]
["Regionshospitalet Hammel Neurocenter","Korrektion",null,null,null,null,0,""]
["Regionshospitalet Hammel Neurocenter","Lønudg. på psyk. afd.,somatiske sygehuse",null,null,null,null,0,""]
["Regionshospitalet Hammel Neurocenter","Øvrige udg. til psyk. afd.,somatiske sygehuse",null,null,null,null,0,""]
["Regionshospitalet Hammel Neurocenter","I alt",{"$f":"SUMIFS((C7:C34),(A7:A34),A35)","v":0},{"$f":"SUMIFS((D7:D34),(A7:A34),A35)","v":0},{"$f":"SUMIFS((E7:E34),(A7:A34),A35)","v":0},{"$f":"SUMIFS((F7:F34),(A7:A34),A35)","v":0},0,""]
["Øvrige i Region Midtjylland",null,null,null,null,null,0,""]
["Øvrige i Region Midtjylland","Korrektion",null,null,null,null,0,""]
["Øvrige i Region Midtjylland","Lønudg. på psyk. afd.,somatiske sygehuse",null,null,null,null,0,""]
["Øvrige i Region Midtjylland","Øvrige udg. til psyk. afd.,somatiske sygehuse",null,null,null,null,0,""]
["Øvrige i Region Midtjylland","I alt",{"$f":"SUMIFS((C7:C39),(A7:A39),A40)","v":0},{"$f":"SUMIFS((D7:D39),(A7:A39),A40)","v":0},{"$f":"SUMIFS((E7:E39),(A7:A39),A40)","v":0},{"$f":"SUMIFS((F7:F39),(A7:A39),A40)","v":0},0,""]
["Ikke fordelte udgifter og indtægter",null,null,null,null,null,0,""]
["Ikke fordelte udgifter og indtægter","Korrektion",null,null,null,null,0,""]
["Ikke fordelte udgifter og indtægter","Lønudg. på psyk. afd.,somatiske sygehuse",null,null,null,null,0,""]
["Ikke fordelte udgifter og indtægter","Øvrige udg. til psyk. afd.,somatiske sygehuse",null,null,null,null,0,""]
["Ikke fordelte udgifter og indtægter","I alt",{"$f":"SUMIFS((C7:C44),(A7:A44),A45)","v":0},{"$f":"SUMIFS((D7:D44),(A7:A44),A45)","v":0},{"$f":"SUMIFS((E7:E44),(A7:A44),A45)","v":0},{"$f":"SUMIFS((F7:F44),(A7:A44),A45)","v":0},0,""]

{"sheet":"Skema 5","index":4,"n_rows":45,"n_cols":9,"rows_kept":45,"cut":false,"hidden":false,"merged":[[1,1,2,8]]}
["Region Midtjylland, somatiske sygehuse."]
[null,"Skema 5: Leasing- og huslejeudgifter. (1.000 kr.)"]
[]
[]
["Sygehus",null,2023,2022,2021,2020,"Δ2022-2023","% afvigelse","Begrundelse"]
["Regionshospitalet Horsens"]
["Regionshospitalet Horsens","Andre udgifter",null,null,null,null,{"$f":"IF(ISERROR(C7- D7)=TRUE,\"\",C7 - D7)","v":0},{"$f":"IF(ISERROR((((C7- D7)/D7)*100)=TRUE),\"\",IF((((C7- D7)/D7)*100)<-7,FIXED(((C7- D7)/D7)*100, 1,TRUE) &\"%\" & \"▼\",IF((((C7- D7)/D7)*100)>7,FIXED(((C7- D7)/D7)*100, 1,TRUE) &\"%\" &\"▲\",FIXED(((C7- D7)/D7)*100, 1,TRUE)&\"%\")))","v":""}]
["Regionshospitalet Horsens","Leasing- og lejeudgifter",3215,2395,2559,250,820,"34,2%▲"]
["Regionshospitalet Horsens","Huslejeudgifter",null,null,0,181,0,""]
["Regionshospitalet Horsens","I alt",{"$f":"SUMIFS((C7:C9),(A7:A9),A10)","v":3215},{"$f":"SUMIFS((D7:D9),(A7:A9),A10)","v":2395},{"$f":"SUMIFS((E7:E9),(A7:A9),A10)","v":2559},{"$f":"SUMIFS((F7:F9),(A7:A9),A10)","v":431},820,"34,2%▲"]
["Regionshospitalet Gødstrup",null,null,null,null,null,0,""]
["Regionshospitalet Gødstrup","Andre udgifter",null,null,null,null,0,""]
["Regionshospitalet Gødstrup","Leasing- og lejeudgifter",2285,2064,832,1738,221,"10,7%▲"]
["Regionshospitalet Gødstrup","Huslejeudgifter",14023,6085,840,899,7938,"130,5%▲"]
["Regionshospitalet Gødstrup","I alt",{"$f":"SUMIFS((C7:C14),(A7:A14),A15)","v":16308},{"$f":"SUMIFS((D7:D14),(A7:A14),A15)","v":8149},{"$f":"SUMIFS((E7:E14),(A7:A14),A15)","v":1672},{"$f":"SUMIFS((F7:F14),(A7:A14),A15)","v":2637},8159,"100,1%▲"]
["Hospitalsenhed Midt",null,null,null,null,null,0,""]
["Hospitalsenhed Midt","Andre udgifter",null,null,null,null,0,""]
["Hospitalsenhed Midt","Leasing- og lejeudgifter",1994,1619,1506,1619,375,"23,2%▲"]
["Hospitalsenhed Midt","Huslejeudgifter",1937,1504,1750,1965,433,"28,8%▲"]
["Hospitalsenhed Midt","I alt",{"$f":"SUMIFS((C7:C19),(A7:A19),A20)","v":3931},{"$f":"SUMIFS((D7:D19),(A7:A19),A20)","v":3123},{"$f":"SUMIFS((E7:E19),(A7:A19),A20)","v":3256},{"$f":"SUMIFS((F7:F19),(A7:A19),A20)","v":3584},808,"25,9%▲"]
["Århus Universitetshospital",null,null,null,null,null,0,""]
["Århus Universitetshospital","Andre udgifter",null,null,null,null,0,""]
["Århus Universitetshospital","Leasing- og lejeudgifter",14657,2919,9625,9278,11738,"402,1%▲"]
["Århus Universitetshospital","Huslejeudgifter",40331,32997,30325,31134,7334,"22,2%▲"]
["Århus Universitetshospital","I alt",{"$f":"SUMIFS((C7:C24),(A7:A24),A25)","v":54988},{"$f":"SUMIFS((D7:D24),(A7:A24),A25)","v":35916},{"$f":"SUMIFS((E7:E24),(A7:A24),A25)","v":39950},{"$f":"SUMIFS((F7:F24),(A7:A24),A25)","v":40412},19072,"53,1%▲"]
["Regionshospitalet Randers",null,null,null,null,null,0,""]
["Regionshospitalet Randers","Andre udgifter",null,null,null,null,0,""]
["Regionshospitalet Randers","Leasing- og lejeudgifter",null,null,null,null,0,""]
["Regionshospitalet Randers","Huslejeudgifter",31,34,45,181,-3,"-8,8%▼"]
["Regionshospitalet Randers","I alt",{"$f":"SUMIFS((C7:C29),(A7:A29),A30)","v":31},{"$f":"SUMIFS((D7:D29),(A7:A29),A30)","v":34},{"$f":"SUMIFS((E7:E29),(A7:A29),A30)","v":45},{"$f":"SUMIFS((F7:F29),(A7:A29),A30)","v":181},-3,"-8,8%▼"]
["Regionshospitalet Hammel Neurocenter",null,null,null,null,null,0,""]
["Regionshospitalet Hammel Neurocenter","Andre udgifter",null,null,null,null,0,""]
["Regionshospitalet Hammel Neurocenter","Leasing- og lejeudgifter",null,null,null,null,0,""]
["Regionshospitalet Hammel Neurocenter","Huslejeudgifter",null,null,null,null,0,""]
["Regionshospitalet Hammel Neurocenter","I alt",{"$f":"SUMIFS((C7:C34),(A7:A34),A35)","v":0},{"$f":"SUMIFS((D7:D34),(A7:A34),A35)","v":0},{"$f":"SUMIFS((E7:E34),(A7:A34),A35)","v":0},{"$f":"SUMIFS((F7:F34),(A7:A34),A35)","v":0},0,""]
["Øvrige i Region Midtjylland",null,null,null,null,null,0,""]
["Øvrige i Region Midtjylland","Andre udgifter",null,null,null,null,0,""]
["Øvrige i Region Midtjylland","Leasing- og lejeudgifter",null,null,null,null,0,""]
["Øvrige i Region Midtjylland","Huslejeudgifter",null,null,null,null,0,""]
["Øvrige i Region Midtjylland","I alt",{"$f":"SUMIFS((C7:C39),(A7:A39),A40)","v":0},{"$f":"SUMIFS((D7:D39),(A7:A39),A40)","v":0},{"$f":"SUMIFS((E7:E39),(A7:A39),A40)","v":0},{"$f":"SUMIFS((F7:F39),(A7:A39),A40)","v":0},0,""]
["Ikke fordelte udgifter og indtægter",null,null,null,null,null,0,""]
["Ikke fordelte udgifter og indtægter","Andre udgifter",null,null,null,null,0,""]
["Ikke fordelte udgifter og indtægter","Leasing- og lejeudgifter",46996,40846,151822,183559,6150,"15,1%▲"]
["Ikke fordelte udgifter og indtægter","Huslejeudgifter",null,null,null,null,0,""]
["Ikke fordelte udgifter og indtægter","I alt",{"$f":"SUMIFS((C7:C44),(A7:A44),A45)","v":46996},{"$f":"SUMIFS((D7:D44),(A7:A44),A45)","v":40846},{"$f":"SUMIFS((E7:E44),(A7:A44),A45)","v":151822},{"$f":"SUMIFS((F7:F44),(A7:A44),A45)","v":183559},6150,"15,1%▲"]

{"sheet":"Skema 6","index":5,"n_rows":405,"n_cols":9,"rows_kept":405,"cut":false,"hidden":false,"merged":[[1,1,2,8]]}
["Region Midtjylland, somatiske sygehuse."]
[null,"Skema 6: Udgifter til andet end patientbehandling. (1.000 kr.)"]
[]
[]
["Sygehus",null,2023,2022,2021,2020,"Δ2022-2023","% afvigelse","Begrundelse"]
["Regionshospitalet Horsens"]
["Regionshospitalet Horsens","Skema 6.1: Center for voldsramte (Bispebjerg)",null,null,null,null,{"$f":"IF(ISERROR(C7- D7)=TRUE,\"\",C7 - D7)","v":0},{"$f":"IF(ISERROR((((C7- D7)/D7)*100)=TRUE),\"\",IF((((C7- D7)/D7)*100)<-7,FIXED(((C7- D7)/D7)*100, 1,TRUE) &\"%\" & \"▼\",IF((((C7- D7)/D7)*100)>7,FIXED(((C7- D7)/D7)*100, 1,TRUE) &\"%\" &\"▲\",FIXED(((C7- D7)/D7)*100, 1,TRUE)&\"%\")))","v":""}]
["Regionshospitalet Horsens","Skema 6.2: Ventilatørbistand i hjemmet, respiratorpatienter",null,null,null,null,0,""]
["Regionshospitalet Horsens","Skema 6.3: Blodprøvetagning i eget hjem",955,958,913,934,-3,"-0,3%"]
["Regionshospitalet Horsens","Skema 6.4: Psykinfo + pårørende",null,null,null,null,0,""]
["Regionshospitalet Horsens","Skema 6.5: Leveret udstyr til patienter i eget hjem, ilt og sonderemedier",4678,4514,3557,3627,164,"3,6%"]
["Regionshospitalet Horsens","Skema 6.6: Montebello (Nordsjællands Hospitaler)",null,null,null,null,0,""]
["Regionshospitalet Horsens","Skema 6.7: Satspulje korrektioner mellem år",null,null,null,null,0,""]
["Regionshospitalet Horsens","Skema 6.8: Klinisk farmakologisk rådgivning af praksissektoren",null,null,null,null,0,""]
["Regionshospitalet Horsens","Skema 6.9: Tandregulering ifm. operation",null,null,null,null,0,""]
["Regionshospitalet Horsens","Skema 6.10: Giftlinjen",null,null,null,null,0,""]
["Regionshospitalet Horsens","Skema 6.11: Tjenestemandspensioner",null,null,null,null,0,""]
["Regionshospitalet Horsens","Skema 6.12: Art 4.6 Betalinger til staten",null,null,null,null,0,""]
["Regionshospitalet Horsens","Skema 6.13: Art 4.7 Betalinger til kommuner",2030,1183,1014,556,847,"71,6%▲"]
["Regionshospitalet Horsens","Skema 6.14: Art 4.8 Betalinger til andre regioner",400,447,438,null,-47,"-10,5%▼"]
["Regionshospitalet Horsens","Skema 6.15: Art 7.6 Betalinger fra staten",null,null,null,null,0,""]
["Regionshospitalet Horsens","Skema 6.16: Art 7.7 Betalinger fra kommuner",-3170,-2508,-2646,-2567,-662,"26,4%▲"]
["Regionshospitalet Horsens","Skema 6.17: Art 7.8 Betalinger fra andre regioner",null,null,null,null,0,""]
["Regionshospitalet Horsens","Skema 6.18: Betalinger til selvejende, private og udenlandske sygehuse",null,null,null,null,0,""]
["Regionshospitalet Horsens","Skema 6.19: Dækningsafgift/ejendomsskat",3232,3224,3234,3266,8,"0,2%"]
["Regionshospitalet Horsens","Skema 6.20: Forsikringer/erstatninger",3800,3213,3554,3740,587,"18,3%▲"]
["Regionshospitalet Horsens","Skema 6.21: Vederlagsfri Lab. –ydelser og andre ydelser til praksissektoren",29442,27757,26887,24943,1685,"6,1%"]
["Regionshospitalet Horsens","Skema 6.22: Patienttransport",456,470,488,442,-14,"-3,0%"]
["Regionshospitalet Horsens","Skema 6.23: Serviceydelser til/fra andre institutioner eller sygehuse udenfor regionen",null,null,null,null,0,""]
["Regionshospitalet Horsens","Skema 6.24: Udgifter til eksternt finansierede forskning",null,null,null,null,0,""]
["Regionshospitalet Horsens","Skema 6.25: Forebyggelse rettet mod praksissektoren og kommuner",null,null,null,null,0,""]
["Regionshospitalet Horsens","Skema 6.26: Praksisreservelæger",14529,12939,14294,11669,1590,"12,3%▲"]
["Regionshospitalet Horsens","Skema 6.27: Præhospital",9213,9755,10042,10255,-542,"-5,6%"]
["Regionshospitalet Horsens","Skema 6.28: Udgifter til Danske Regioner (Kontigent, MedCom, Fællesproj.)",null,null,null,null,0,""]
["Regionshospitalet Horsens","Skema 6.29: Hospice",824,805,783,708,19,"2,4%"]
["Regionshospitalet Horsens","Skema 6.30: Konsulenter(Praksis)",385,377,357,270,8,"2,1%"]
["Regionshospitalet Horsens","Skema 6.31: Videnskabsetisk Komité",null,null,null,null,0,""]
["Regionshospitalet Horsens","Skema 6.32: Tolkebistand",492,457,393,491,35,"7,7%▲"]
["Regionshospitalet Horsens","Skema 6.33: Dansk Center for Partikelterapi",null,null,null,null,0,""]
["Regionshospitalet Horsens","Skema 6.34: Politisk organisation – overførte udgifter fra funktion 4.10.01, 4.10.02 og 4.10.04",null,null,null,null,0,""]
["Regionshospitalet Horsens","Skema 6.35: Øvrige udgifter, Region Sjælland",null,null,null,null,0,""]
["Regionshospitalet Horsens","Skema 6.36: Sundhedsydelser ifm. specialsektor",null,null,null,null,0,""]
["Regionshospitalet Horsens","Skema 6.37: Udgifter til primær sundhed fra skema 2",null,null,null,null,0,""]
["Regionshospitalet Horsens","Skema 6.38: Udgifter til primær sundhed fra skema 3",null,null,null,null,0,""]
["Regionshospitalet Horsens","Skema 6.39: Særlige udgifter ifm. COVID-19",2363,69499,113540,40510,-67136,"-96,6%▼"]
["Regionshospitalet Horsens","Skema 6.40: Udleveret udstyr/tilbehør ifm. cochlear implantater",null,null,null,null,0,""]
["Regionshospitalet Horsens","Skema 6.41: Luxturna-behandling, Rigshospitalet",null,null,null,null,0,""]
["Regionshospitalet Horsens","Skema 6.42: Udleveret medicin",16353,16596,16393,null,-243,"-1,5%"]
["Regionshospitalet Horsens","Skema 6.43: Udgifter ifm. sundhedsklynger",null,null,null,null,0,""]
["Regionshospitalet Horsens","Skema 6.44: Ukrainske patienter under særlov eller asyl",null,null,null,null,0,""]
["Regionshospitalet Horsens","Skema 6.45: Udgifter ifm. de særlige pladser i psykiatrien",null,null,null,null,0,""]
["Regionshospitalet Horsens","Skema 6.46: Sikringsafdelingen, Region Sjælland",null,null,null,null,0,""]
["Regionshospitalet Horsens","Skema 6.47: Øvrige (Kan kun benyttes efter aftale med Sundhedsdatastyrelsen)",null,null,null,null,0,""]
["Regionshospitalet Horsens","Lukkede poster (må kun bruges af Sundhedsdatastyrelsen)",null,null,null,null,0,""]
["Regionshospitalet Horsens","I alt",{"$f":"SUMIFS((C7:C54),(A7:A54),A55)","v":85982},{"$f":"SUMIFS((D7:D54),(A7:A54),A55)","v":149686},{"$f":"SUMIFS((E7:E54),(A7:A54),A55)","v":193241},{"$f":"SUMIFS((F7:F54),(A7:A54),A55)","v":98844},-63704,"-42,6%▼"]
["Regionshospitalet Gødstrup",null,null,null,null,null,0,""]
["Regionshospitalet Gødstrup","Skema 6.1: Center for voldsramte (Bispebjerg)",null,null,null,null,0,""]
["Regionshospitalet Gødstrup","Skema 6.2: Ventilatørbistand i hjemmet, respiratorpatienter",null,null,null,null,0,""]
["Regionshospitalet Gødstrup","Skema 6.3: Blodprøvetagning i eget hjem",856,1760,1680,1597,-904,"-51,4%▼"]
["Regionshospitalet Gødstrup","Skema 6.4: Psykinfo + pårørende",null,null,null,null,0,""]
["Regionshospitalet Gødstrup","Skema 6.5: Leveret udstyr til patienter i eget hjem, ilt og sonderemedier",5647,4937,3941,3885,710,"14,4%▲"]
["Regionshospitalet Gødstrup","Skema 6.6: Montebello (Nordsjællands Hospitaler)",null,null,null,null,0,""]
["Regionshospitalet Gødstrup","Skema 6.7: Satspulje korrektioner mellem år",null,null,null,null,0,""]
["Regionshospitalet Gødstrup","Skema 6.8: Klinisk farmakologisk rådgivning af praksissektoren",null,null,null,null,0,""]
["Regionshospitalet Gødstrup","Skema 6.9: Tandregulering ifm. operation",null,5,0,1,-5,"-100,0%▼"]
["Regionshospitalet Gødstrup","Skema 6.10: Giftlinjen",null,null,null,null,0,""]
["Regionshospitalet Gødstrup","Skema 6.11: Tjenestemandspensioner",null,null,null,null,0,""]
["Regionshospitalet Gødstrup","Skema 6.12: Art 4.6 Betalinger til staten",null,null,null,null,0,""]
["Regionshospitalet Gødstrup","Skema 6.13: Art 4.7 Betalinger til kommuner",2419,2640,2876,872,-221,"-8,4%▼"]
["Regionshospitalet Gødstrup","Skema 6.14: Art 4.8 Betalinger til andre regioner",1733,2053,1501,1552,-320,"-15,6%▼"]
["Regionshospitalet Gødstrup","Skema 6.15: Art 7.6 Betalinger fra staten",-650,-436,-419,-209,{"$f":"IF(ISERROR(C71- D71)=TRUE,\"\",C71 - D71)","v":-214},{"$f":"IF(ISERROR((((C71- D71)/D71)*100)=TRUE),\"\",IF((((C71- D71)/D71)*100)<-7,FIXED(((C71- D71)/D71)*100, 1,TRUE) &\"%\" & \"▼\",IF((((C71- D71)/D71)*100)>7,FIXED(((C71- D71)/D71)*100, 1,TRUE) &\"%\" &\"▲\",FIXED(((C71- D71)/D71)*100, 1,TRUE)&\"%\")))","v":"49,1%▲"}]
["Regionshospitalet Gødstrup","Skema 6.16: Art 7.7 Betalinger fra kommuner",-1515,-1229,-2237,-1229,-286,"23,3%▲"]
["Regionshospitalet Gødstrup","Skema 6.17: Art 7.8 Betalinger fra andre regioner",-1848,-2722,-939,-299,874,"-32,1%▼"]
["Regionshospitalet Gødstrup","Skema 6.18: Betalinger til selvejende, private og udenlandske sygehuse",null,null,null,null,0,""]
["Regionshospitalet Gødstrup","Skema 6.19: Dækningsafgift/ejendomsskat",1351,4924,6587,6532,-3573,"-72,6%▼"]
["Regionshospitalet Gødstrup","Skema 6.20: Forsikringer/erstatninger",5573,3581,6364,4652,1992,"55,6%▲"]
["Regionshospitalet Gødstrup","Skema 6.21: Vederlagsfri Lab. –ydelser og andre ydelser til praksissektoren",63597,67015,42750,56439,-3418,"-5,1%"]
["Regionshospitalet Gødstrup","Skema 6.22: Patienttransport",78,395,38,23,-317,"-80,3%▼"]
["Regionshospitalet Gødstrup","Skema 6.23: Serviceydelser til/fra andre institutioner eller sygehuse udenfor regionen",null,null,null,null,0,""]
["Regionshospitalet Gødstrup","Skema 6.24: Udgifter til eksternt finansierede forskning",null,null,null,null,0,""]
["Regionshospitalet Gødstrup","Skema 6.25: Forebyggelse rettet mod praksissektoren og kommuner",7783,20090,6630,7297,-12307,"-61,3%▼"]
["Regionshospitalet Gødstrup","Skema 6.26: Praksisreservelæger",19225,18906,15027,14545,319,"1,7%"]
["Regionshospitalet Gødstrup","Skema 6.27: Præhospital",10024,11589,11620,11200,-1565,"-13,5%▼"]
["Regionshospitalet Gødstrup","Skema 6.28: Udgifter til Danske Regioner (Kontigent, MedCom, Fællesproj.)",null,null,null,null,0,""]
["Regionshospitalet Gødstrup","Skema 6.29: Hospice",null,null,null,null,0,""]
["Regionshospitalet Gødstrup","Skema 6.30: Konsulenter(Praksis)",4548,4382,4327,4269,166,"3,8%"]
["Regionshospitalet Gødstrup","Skema 6.31: Videnskabsetisk Komité",null,null,null,null,0,""]
["Regionshospitalet Gødstrup","Skema 6.32: Tolkebistand",821,631,723,762,190,"30,1%▲"]
["Regionshospitalet Gødstrup","Skema 6.33: Dansk Center for Partikelterapi",null,null,null,null,0,""]
["Regionshospitalet Gødstrup","Skema 6.34: Politisk organisation – overførte udgifter fra funktion 4.10.01, 4.10.02 og 4.10.04",null,null,null,null,0,""]
["Regionshospitalet Gødstrup","Skema 6.35: Øvrige udgifter, Region Sjælland",null,null,null,null,0,""]
["Regionshospitalet Gødstrup","Skema 6.36: Sundhedsydelser ifm. specialsektor",null,null,null,null,0,""]
["Regionshospitalet Gødstrup","Skema 6.37: Udgifter til primær sundhed fra skema 2",null,null,null,null,0,""]
["Regionshospitalet Gødstrup","Skema 6.38: Udgifter til primær sundhed fra skema 3",null,null,null,null,0,""]
["Regionshospitalet Gødstrup","Skema 6.39: Særlige udgifter ifm. COVID-19",4744,130026,194024,112869,-125282,"-96,4%▼"]
["Regionshospitalet Gødstrup","Skema 6.40: Udleveret udstyr/tilbehør ifm. cochlear implantater",null,null,null,null,0,""]
["Regionshospitalet Gødstrup","Skema 6.41: Luxturna-behandling, Rigshospitalet",null,null,null,null,0,""]
["Regionshospitalet Gødstrup","Skema 6.42: Udleveret medicin",145096,144920,177806,null,176,"0,1%"]
["Regionshospitalet Gødstrup","Skema 6.43: Udgifter ifm. sundhedsklynger",null,null,null,null,0,""]
["Regionshospitalet Gødstrup","Skema 6.44: Ukrainske patienter under særlov eller asyl",null,null,null,null,0,""]
["Regionshospitalet Gødstrup","Skema 6.45: Udgifter ifm. de særlige pladser i psykiatrien",null,null,null,null,0,""]
["Regionshospitalet Gødstrup","Skema 6.46: Sikringsafdelingen, Region Sjælland",null,null,null,null,0,""]
["Regionshospitalet Gødstrup","Skema 6.47: Øvrige (Kan kun benyttes efter aftale med Sundhedsdatastyrelsen)",null,null,6922,null,0,""]
["Regionshospitalet Gødstrup","Lukkede poster (må kun bruges af Sundhedsdatastyrelsen)",null,null,null,null,0,""]
["Regionshospitalet Gødstrup","I alt",{"$f":"SUMIFS((C7:C104),(A7:A104),A105)","v":269482},{"$f":"SUMIFS((D7:D104),(A7:A104),A105)","v":413467},{"$f":"SUMIFS((E7:E104),(A7:A104),A105)","v":479221},{"$f":"SUMIFS((F7:F104),(A7:A104),A105)","v":224758},-143985,"-34,8%▼"]
["Hospitalsenhed Midt",null,null,null,null,null,0,""]
["Hospitalsenhed Midt","Skema 6.1: Center for voldsramte (Bispebjerg)",null,null,null,null,0,""]
["Hospitalsenhed Midt","Skema 6.2: Ventilatørbistand i hjemmet, respiratorpatienter",null,null,null,null,0,""]
["Hospitalsenhed Midt","Skema 6.3: Blodprøvetagning i eget hjem",1913,1854,1841,1818,59,"3,2%"]
["Hospitalsenhed Midt","Skema 6.4: Psykinfo + pårørende",null,null,null,null,0,""]
["Hospitalsenhed Midt","Skema 6.5: Leveret udstyr til patienter i eget hjem, ilt og sonderemedier",6648,6300,4955,5203,348,"5,5%"]
["Hospitalsenhed Midt","Skema 6.6: Montebello (Nordsjællands Hospitaler)",null,null,null,null,0,""]
["Hospitalsenhed Midt","Skema 6.7: Satspulje korrektioner mellem år",null,null,null,null,0,""]
["Hospitalsenhed Midt","Skema 6.8: Klinisk farmakologisk rådgivning af praksissektoren",null,null,null,null,0,""]
["Hospitalsenhed Midt","Skema 6.9: Tandregulering ifm. operation",null,null,null,null,0,""]
["Hospitalsenhed Midt","Skema 6.10: Giftlinjen",null,null,null,null,0,""]
["Hospitalsenhed Midt","Skema 6.11: Tjenestemandspensioner",null,null,null,null,0,""]
["Hospitalsenhed Midt","Skema 6.12: Art 4.6 Betalinger til staten",null,null,null,null,0,""]
["Hospitalsenhed Midt","Skema 6.13: Art 4.7 Betalinger til kommuner",1648,1436,1500,null,212,"14,8%▲"]
["Hospitalsenhed Midt","Skema 6.14: Art 4.8 Betalinger til andre regioner",2263,8553,-1159,-1863,-6290,"-73,5%▼"]
["Hospitalsenhed Midt","Skema 6.15: Art 7.6 Betalinger fra staten",-1,-1,-1,-2,0,"0,0%"]
["Hospitalsenhed Midt","Skema 6.16: Art 7.7 Betalinger fra kommuner",-3939,-3898,-4406,-2292,-41,"1,1%"]
["Hospitalsenhed Midt","Skema 6.17: Art 7.8 Betalinger fra andre regioner",-144683,-168461,-140707,-138745,23778,"-14,1%▼"]
["Hospitalsenhed Midt","Skema 6.18: Betalinger til selvejende, private og udenlandske sygehuse",null,null,null,null,0,""]
["Hospitalsenhed Midt","Skema 6.19: Dækningsafgift/ejendomsskat",10351,7830,3450,10601,2521,"32,2%▲"]
["Hospitalsenhed Midt","Skema 6.20: Forsikringer/erstatninger",7576,6316,9441,6633,1260,"19,9%▲"]
["Hospitalsenhed Midt","Skema 6.21: Vederlagsfri Lab. –ydelser og andre ydelser til praksissektoren",58728,56801,53774,62570,1927,"3,4%"]
["Hospitalsenhed Midt","Skema 6.22: Patienttransport",null,0,9,null,0,""]
["Hospitalsenhed Midt","Skema 6.23: Serviceydelser til/fra andre institutioner eller sygehuse udenfor regionen",null,null,null,null,0,""]
["Hospitalsenhed Midt","Skema 6.24: Udgifter til eksternt finansierede forskning",1425,1311,2175,1838,114,"8,7%▲"]
["Hospitalsenhed Midt","Skema 6.25: Forebyggelse rettet mod praksissektoren og kommuner",null,null,null,null,0,""]
["Hospitalsenhed Midt","Skema 6.26: Praksisreservelæger",17206,16355,15979,15632,851,"5,2%"]
["Hospitalsenhed Midt","Skema 6.27: Præhospital",22576,21737,20879,18026,839,"3,9%"]
["Hospitalsenhed Midt","Skema 6.28: Udgifter til Danske Regioner (Kontigent, MedCom, Fællesproj.)",null,null,null,null,0,""]
["Hospitalsenhed Midt","Skema 6.29: Hospice",833,814,671,1009,{"$f":"IF(ISERROR(C135- D135)=TRUE,\"\",C135 - D135)","v":19},{"$f":"IF(ISERROR((((C135- D135)/D135)*100)=TRUE),\"\",IF((((C135- D135)/D135)*100)<-7,FIXED(((C135- D135)/D135)*100, 1,TRUE) &\"%\" & \"▼\",IF((((C135- D135)/D135)*100)>7,FIXED(((C135- D135)/D135)*100, 1,TRUE) &\"%\" &\"▲\",FIXED(((C135- D135)/D135)*100, 1,TRUE)&\"%\")))","v":"2,3%"}]
["Hospitalsenhed Midt","Skema 6.30: Konsulenter(Praksis)",717,681,null,650,36,"5,3%"]
["Hospitalsenhed Midt","Skema 6.31: Videnskabsetisk Komité",null,null,null,null,0,""]
["Hospitalsenhed Midt","Skema 6.32: Tolkebistand",1091,973,848,802,118,"12,1%▲"]
["Hospitalsenhed Midt","Skema 6.33: Dansk Center for Partikelterapi",null,null,null,null,0,""]
["Hospitalsenhed Midt","Skema 6.34: Politisk organisation – overførte udgifter fra funktion 4.10.01, 4.10.02 og 4.10.04",null,null,null,null,0,""]
["Hospitalsenhed Midt","Skema 6.35: Øvrige udgifter, Region Sjælland",null,null,null,null,0,""]
["Hospitalsenhed Midt","Skema 6.36: Sundhedsydelser ifm. specialsektor",null,null,null,null,0,""]
["Hospitalsenhed Midt","Skema 6.37: Udgifter til primær sundhed fra skema 2",null,null,null,null,0,""]
["Hospitalsenhed Midt","Skema 6.38: Udgifter til primær sundhed fra skema 3",null,null,null,null,0,""]
["Hospitalsenhed Midt","Skema 6.39: Særlige udgifter ifm. COVID-19",8502,151215,194103,88715,-142713,"-94,4%▼"]
["Hospitalsenhed Midt","Skema 6.40: Udleveret udstyr/tilbehør ifm. cochlear implantater",null,null,null,null,0,""]
["Hospitalsenhed Midt","Skema 6.41: Luxturna-behandling, Rigshospitalet",null,null,null,null,0,""]
["Hospitalsenhed Midt","Skema 6.42: Udleveret medicin",51803,60606,57817,null,-8803,"-14,5%▼"]
["Hospitalsenhed Midt","Skema 6.43: Udgifter ifm. sundhedsklynger",null,null,null,null,0,""]
["Hospitalsenhed Midt","Skema 6.44: Ukrainske patienter under særlov eller asyl",null,null,null,null,0,""]
["Hospitalsenhed Midt","Skema 6.45: Udgifter ifm. de særlige pladser i psykiatrien",null,null,null,null,0,""]
["Hospitalsenhed Midt","Skema 6.46: Sikringsafdelingen, Region Sjælland",null,null,null,null,0,""]
["Hospitalsenhed Midt","Skema 6.47: Øvrige (Kan kun benyttes efter aftale med Sundhedsdatastyrelsen)",null,null,null,null,0,""]
["Hospitalsenhed Midt","Lukkede poster (må kun bruges af Sundhedsdatastyrelsen)",null,null,null,null,0,""]
["Hospitalsenhed Midt","I alt",{"$f":"SUMIFS((C7:C154),(A7:A154),A155)","v":44657},{"$f":"SUMIFS((D7:D154),(A7:A154),A155)","v":170422},{"$f":"SUMIFS((E7:E154),(A7:A154),A155)","v":221169},{"$f":"SUMIFS((F7:F154),(A7:A154),A155)","v":70595},-125765,"-73,8%▼"]
["Århus Universitetshospital",null,null,null,null,null,0,""]
["Århus Universitetshospital","Skema 6.1: Center for voldsramte (Bispebjerg)",null,null,null,null,0,""]
["Århus Universitetshospital","Skema 6.2: Ventilatørbistand i hjemmet, respiratorpatienter",1015,1033,742,648,-18,"-1,7%"]
["Århus Universitetshospital","Skema 6.3: Blodprøvetagning i eget hjem",null,null,null,null,0,""]
["Århus Universitetshospital","Skema 6.4: Psykinfo + pårørende",null,null,null,null,0,""]
["Århus Universitetshospital","Skema 6.5: Leveret udstyr til patienter i eget hjem, ilt og sonderemedier",1700,2083,1044,1046,-383,"-18,4%▼"]
["Århus Universitetshospital","Skema 6.6: Montebello (Nordsjællands Hospitaler)",null,null,null,null,0,""]
["Århus Universitetshospital","Skema 6.7: Satspulje korrektioner mellem år",null,null,null,null,0,""]
["Århus Universitetshospital","Skema 6.8: Klinisk farmakologisk rådgivning af praksissektoren",13055,11523,11210,12004,1532,"13,3%▲"]
["Århus Universitetshospital","Skema 6.9: Tandregulering ifm. operation",2079,2127,2386,2490,-48,"-2,3%"]
["Århus Universitetshospital","Skema 6.10: Giftlinjen",null,null,null,null,0,""]
["Århus Universitetshospital","Skema 6.11: Tjenestemandspensioner",null,null,null,null,0,""]
["Århus Universitetshospital","Skema 6.12: Art 4.6 Betalinger til staten",null,null,null,null,0,""]
["Århus Universitetshospital","Skema 6.13: Art 4.7 Betalinger til kommuner",2542,2455,2303,539,87,"3,5%"]
["Århus Universitetshospital","Skema 6.14: Art 4.8 Betalinger til andre regioner",308711,301585,256334,206229,7126,"2,4%"]
["Århus Universitetshospital","Skema 6.15: Art 7.6 Betalinger fra staten",-14774,-11072,-12313,-19854,-3702,"33,4%▲"]
["Århus Universitetshospital","Skema 6.16: Art 7.7 Betalinger fra kommuner",-9520,-8828,-8193,-7809,-692,"7,8%▲"]
["Århus Universitetshospital","Skema 6.17: Art 7.8 Betalinger fra andre regioner",-920124,-911499,-787187,-755484,-8625,"0,9%"]
["Århus Universitetshospital","Skema 6.18: Betalinger til selvejende, private og udenlandske sygehuse",2135,875,-3773,-2419,1260,"144,0%▲"]
["Århus Universitetshospital","Skema 6.19: Dækningsafgift/ejendomsskat",41921,41884,41807,33761,37,"0,1%"]
["Århus Universitetshospital","Skema 6.20: Forsikringer/erstatninger",15401,10223,14957,13685,5178,"50,7%▲"]
["Århus Universitetshospital","Skema 6.21: Vederlagsfri Lab. –ydelser og andre ydelser til praksissektoren",181942,167812,176170,154436,14130,"8,4%▲"]
["Århus Universitetshospital","Skema 6.22: Patienttransport",1848,1677,1889,1310,171,"10,2%▲"]
["Århus Universitetshospital","Skema 6.23: Serviceydelser til/fra andre institutioner eller sygehuse udenfor regionen",null,null,null,null,0,""]
["Århus Universitetshospital","Skema 6.24: Udgifter til eksternt finansierede forskning",28685,27696,26247,19139,989,"3,6%"]
["Århus Universitetshospital","Skema 6.25: Forebyggelse rettet mod praksissektoren og kommuner",null,null,null,null,0,""]
["Århus Universitetshospital","Skema 6.26: Praksisreservelæger",19520,18895,18453,17918,625,"3,3%"]
["Århus Universitetshospital","Skema 6.27: Præhospital",6170,6144,5932,6343,26,"0,4%"]
["Århus Universitetshospital","Skema 6.28: Udgifter til Danske Regioner (Kontigent, MedCom, Fællesproj.)",null,null,null,null,0,""]
["Århus Universitetshospital","Skema 6.29: Hospice",null,null,null,null,0,""]
["Århus Universitetshospital","Skema 6.30: Konsulenter(Praksis)",1179,1134,1098,993,45,"4,0%"]
["Århus Universitetshospital","Skema 6.31: Videnskabsetisk Komité",4,26,-11,18,-22,"-84,6%▼"]
["Århus Universitetshospital","Skema 6.32: Tolkebistand",3116,2248,2416,2246,868,"38,6%▲"]
["Århus Universitetshospital","Skema 6.33: Dansk Center for Partikelterapi",null,119638,109551,103479,-119638,"-100,0%▼"]
["Århus Universitetshospital","Skema 6.34: Politisk organisation – overførte udgifter fra funktion 4.10.01, 4.10.02 og 4.10.04",null,null,null,null,0,""]
["Århus Universitetshospital","Skema 6.35: Øvrige udgifter, Region Sjælland",null,null,null,null,0,""]
["Århus Universitetshospital","Skema 6.36: Sundhedsydelser ifm. specialsektor",null,null,null,null,0,""]
["Århus Universitetshospital","Skema 6.37: Udgifter til primær sundhed fra skema 2",null,null,null,null,0,""]
["Århus Universitetshospital","Skema 6.38: Udgifter til primær sundhed fra skema 3",null,null,null,null,0,""]
["Århus Universitetshospital","Skema 6.39: Særlige udgifter ifm. COVID-19",2025,261806,332356,211981,-259781,"-99,2%▼"]
["Århus Universitetshospital","Skema 6.40: Udleveret udstyr/tilbehør ifm. cochlear implantater",1832,1715,1700,null,117,"6,8%"]
["Århus Universitetshospital","Skema 6.41: Luxturna-behandling, Rigshospitalet",null,null,null,null,0,""]
["Århus Universitetshospital","Skema 6.42: Udleveret medicin",934014,808342,695717,null,125672,"15,5%▲"]
["Århus Universitetshospital","Skema 6.43: Udgifter ifm. sundhedsklynger",null,null,null,null,{"$f":"IF(ISERROR(C199- D199)=TRUE,\"\",C199 - D199)","v":0},{"$f":"IF(ISERROR((((C199- D199)/D199)*100)=TRUE),\"\",IF((((C199- D199)/D199)*100)<-7,FIXED(((C199- D199)/D199)*100, 1,TRUE) &\"%\" & \"▼\",IF((((C199- D199)/D199)*100)>7,FIXED(((C199- D199)/D199)*100, 1,TRUE) &\"%\" &\"▲\",FIXED(((C199- D199)/D199)*100, 1,TRUE)&\"%\")))","v":""}]
["Århus Universitetshospital","Skema 6.44: Ukrainske patienter under særlov eller asyl",3661,3498,null,null,163,"4,7%"]
["Århus Universitetshospital","Skema 6.45: Udgifter ifm. de særlige pladser i psykiatrien",null,null,null,null,0,""]
["Århus Universitetshospital","Skema 6.46: Sikringsafdelingen, Region Sjælland",null,null,null,null,0,""]
["Århus Universitetshospital","Skema 6.47: Øvrige (Kan kun benyttes efter aftale med Sundhedsdatastyrelsen)",null,null,null,null,0,""]
["Århus Universitetshospital","Lukkede poster (må kun bruges af Sundhedsdatastyrelsen)",null,null,null,null,0,""]
["Århus Universitetshospital","I alt",{"$f":"SUMIFS((C7:C204),(A7:A204),A205)","v":628137},{"$f":"SUMIFS((D7:D204),(A7:A204),A205)","v":863020},{"$f":"SUMIFS((E7:E204),(A7:A204),A205)","v":890835},{"$f":"SUMIFS((F7:F204),(A7:A204),A205)","v":2699},-234883,"-27,2%▼"]
["Regionshospitalet Randers",null,null,null,null,null,0,""]
["Regionshospitalet Randers","Skema 6.1: Center for voldsramte (Bispebjerg)",null,null,null,null,0,""]
["Regionshospitalet Randers","Skema 6.2: Ventilatørbistand i hjemmet, respiratorpatienter",null,null,null,null,0,""]
["Regionshospitalet Randers","Skema 6.3: Blodprøvetagning i eget hjem",1390,1268,null,1436,122,"9,6%▲"]
["Regionshospitalet Randers","Skema 6.4: Psykinfo + pårørende",null,null,null,null,0,""]
["Regionshospitalet Randers","Skema 6.5: Leveret udstyr til patienter i eget hjem, ilt og sonderemedier",6113,6035,4700,4650,78,"1,3%"]
["Regionshospitalet Randers","Skema 6.6: Montebello (Nordsjællands Hospitaler)",null,null,null,null,0,""]
["Regionshospitalet Randers","Skema 6.7: Satspulje korrektioner mellem år",null,null,null,null,0,""]
["Regionshospitalet Randers","Skema 6.8: Klinisk farmakologisk rådgivning af praksissektoren",null,null,null,null,0,""]
["Regionshospitalet Randers","Skema 6.9: Tandregulering ifm. operation",null,null,null,null,0,""]
["Regionshospitalet Randers","Skema 6.10: Giftlinjen",null,null,null,null,0,""]
["Regionshospitalet Randers","Skema 6.11: Tjenestemandspensioner",null,null,null,null,0,""]
["Regionshospitalet Randers","Skema 6.12: Art 4.6 Betalinger til staten",null,null,null,null,0,""]
["Regionshospitalet Randers","Skema 6.13: Art 4.7 Betalinger til kommuner",829,1011,1165,null,-182,"-18,0%▼"]
["Regionshospitalet Randers","Skema 6.14: Art 4.8 Betalinger til andre regioner",1193,996,1064,1090,197,"19,8%▲"]
["Regionshospitalet Randers","Skema 6.15: Art 7.6 Betalinger fra staten",null,null,null,0,0,""]
["Regionshospitalet Randers","Skema 6.16: Art 7.7 Betalinger fra kommuner",-1515,-1516,-1665,-1323,1,"-0,1%"]
["Regionshospitalet Randers","Skema 6.17: Art 7.8 Betalinger fra andre regioner",null,null,null,null,0,""]
["Regionshospitalet Randers","Skema 6.18: Betalinger til selvejende, private og udenlandske sygehuse",null,null,null,null,0,""]
["Regionshospitalet Randers","Skema 6.19: Dækningsafgift/ejendomsskat",951,553,483,881,398,"72,0%▲"]
["Regionshospitalet Randers","Skema 6.20: Forsikringer/erstatninger",931,1239,1411,1186,-308,"-24,9%▼"]
["Regionshospitalet Randers","Skema 6.21: Vederlagsfri Lab. –ydelser og andre ydelser til praksissektoren",1419,1316,1298,1276,103,"7,8%▲"]
["Regionshospitalet Randers","Skema 6.22: Patienttransport",16,22,554,12,-6,"-27,3%▼"]
["Regionshospitalet Randers","Skema 6.23: Serviceydelser til/fra andre institutioner eller sygehuse udenfor regionen",null,null,null,null,0,""]
["Regionshospitalet Randers","Skema 6.24: Udgifter til eksternt finansierede forskning",null,null,null,null,0,""]
["Regionshospitalet Randers","Skema 6.25: Forebyggelse rettet mod praksissektoren og kommuner",null,null,4565,5618,0,""]
["Regionshospitalet Randers","Skema 6.26: Praksisreservelæger",15956,16494,17432,14307,-538,"-3,3%"]
["Regionshospitalet Randers","Skema 6.27: Præhospital",1978,2047,2172,2477,-69,"-3,4%"]
["Regionshospitalet Randers","Skema 6.28: Udgifter til Danske Regioner (Kontigent, MedCom, Fællesproj.)",null,null,null,null,0,""]
["Regionshospitalet Randers","Skema 6.29: Hospice",null,null,null,null,0,""]
["Regionshospitalet Randers","Skema 6.30: Konsulenter(Praksis)",427,413,405,400,14,"3,4%"]
["Regionshospitalet Randers","Skema 6.31: Videnskabsetisk Komité",null,null,null,null,0,""]
["Regionshospitalet Randers","Skema 6.32: Tolkebistand",422,270,275,286,152,"56,3%▲"]
["Regionshospitalet Randers","Skema 6.33: Dansk Center for Partikelterapi",null,null,null,null,0,""]
["Regionshospitalet Randers","Skema 6.34: Politisk organisation – overførte udgifter fra funktion 4.10.01, 4.10.02 og 4.10.04",null,null,null,null,0,""]
["Regionshospitalet Randers","Skema 6.35: Øvrige udgifter, Region Sjælland",null,null,null,null,0,""]
["Regionshospitalet Randers","Skema 6.36: Sundhedsydelser ifm. specialsektor",null,null,null,null,0,""]
["Regionshospitalet Randers","Skema 6.37: Udgifter til primær sundhed fra skema 2",null,null,null,null,0,""]
["Regionshospitalet Randers","Skema 6.38: Udgifter til primær sundhed fra skema 3",null,null,null,null,0,""]
["Regionshospitalet Randers","Skema 6.39: Særlige udgifter ifm. COVID-19",4095,97893,121951,45152,-93798,"-95,8%▼"]
["Regionshospitalet Randers","Skema 6.40: Udleveret udstyr/tilbehør ifm. cochlear implantater",null,null,null,null,0,""]
["Regionshospitalet Randers","Skema 6.41: Luxturna-behandling, Rigshospitalet",null,null,null,null,0,""]
["Regionshospitalet Randers","Skema 6.42: Udleveret medicin",43413,33748,21040,null,9665,"28,6%▲"]
["Regionshospitalet Randers","Skema 6.43: Udgifter ifm. sundhedsklynger",null,null,null,null,0,""]
["Regionshospitalet Randers","Skema 6.44: Ukrainske patienter under særlov eller asyl",null,null,null,null,0,""]
["Regionshospitalet Randers","Skema 6.45: Udgifter ifm. de særlige pladser i psykiatrien",null,null,null,null,0,""]
["Regionshospitalet Randers","Skema 6.46: Sikringsafdelingen, Region Sjælland",null,null,null,null,0,""]
["Regionshospitalet Randers","Skema 6.47: Øvrige (Kan kun benyttes efter aftale med Sundhedsdatastyrelsen)",null,null,2282,null,0,""]
["Regionshospitalet Randers","Lukkede poster (må kun bruges af Sundhedsdatastyrelsen)",null,null,null,null,0,""]
["Regionshospitalet Randers","I alt",{"$f":"SUMIFS((C7:C254),(A7:A254),A255)","v":77618},{"$f":"SUMIFS((D7:D254),(A7:A254),A255)","v":161789},{"$f":"SUMIFS((E7:E254),(A7:A254),A255)","v":179132},{"$f":"SUMIFS((F7:F254),(A7:A254),A255)","v":77448},-84171,"-52,0%▼"]
["Regionshospitalet Hammel Neurocenter",null,null,null,null,null,0,""]
["Regionshospitalet Hammel Neurocenter","Skema 6.1: Center for voldsramte (Bispebjerg)",null,null,null,null,0,""]
["Regionshospitalet Hammel Neurocenter","Skema 6.2: Ventilatørbistand i hjemmet, respiratorpatienter",null,null,null,null,0,""]
["Regionshospitalet Hammel Neurocenter","Skema 6.3: Blodprøvetagning i eget hjem",null,null,null,null,0,""]
["Regionshospitalet Hammel Neurocenter","Skema 6.4: Psykinfo + pårørende",null,null,null,null,0,""]
["Regionshospitalet Hammel Neurocenter","Skema 6.5: Leveret udstyr til patienter i eget hjem, ilt og sonderemedier",null,null,null,null,0,""]
["Regionshospitalet Hammel Neurocenter","Skema 6.6: Montebello (Nordsjællands Hospitaler)",null,null,null,null,0,""]
["Regionshospitalet Hammel Neurocenter","Skema 6.7: Satspulje korrektioner mellem år",null,null,null,null,{"$f":"IF(ISERROR(C263- D263)=TRUE,\"\",C263 - D263)","v":0},{"$f":"IF(ISERROR((((C263- D263)/D263)*100)=TRUE),\"\",IF((((C263- D263)/D263)*100)<-7,FIXED(((C263- D263)/D263)*100, 1,TRUE) &\"%\" & \"▼\",IF((((C263- D263)/D263)*100)>7,FIXED(((C263- D263)/D263)*100, 1,TRUE) &\"%\" &\"▲\",FIXED(((C263- D263)/D263)*100, 1,TRUE)&\"%\")))","v":""}]
["Regionshospitalet Hammel Neurocenter","Skema 6.8: Klinisk farmakologisk rådgivning af praksissektoren",null,null,null,null,0,""]
["Regionshospitalet Hammel Neurocenter","Skema 6.9: Tandregulering ifm. operation",null,null,null,null,0,""]
["Regionshospitalet Hammel Neurocenter","Skema 6.10: Giftlinjen",null,null,null,null,0,""]
["Regionshospitalet Hammel Neurocenter","Skema 6.11: Tjenestemandspensioner",null,null,null,null,0,""]
["Regionshospitalet Hammel Neurocenter","Skema 6.12: Art 4.6 Betalinger til staten",null,null,null,null,0,""]
["Regionshospitalet Hammel Neurocenter","Skema 6.13: Art 4.7 Betalinger til kommuner",null,null,null,null,0,""]
["Regionshospitalet Hammel Neurocenter","Skema 6.14: Art 4.8 Betalinger til andre regioner",null,null,null,null,0,""]
["Regionshospitalet Hammel Neurocenter","Skema 6.15: Art 7.6 Betalinger fra staten",null,null,null,null,0,""]
["Regionshospitalet Hammel Neurocenter","Skema 6.16: Art 7.7 Betalinger fra kommuner",null,null,null,null,0,""]
["Regionshospitalet Hammel Neurocenter","Skema 6.17: Art 7.8 Betalinger fra andre regioner",null,null,null,null,0,""]
["Regionshospitalet Hammel Neurocenter","Skema 6.18: Betalinger til selvejende, private og udenlandske sygehuse",null,null,null,null,0,""]
["Regionshospitalet Hammel Neurocenter","Skema 6.19: Dækningsafgift/ejendomsskat",null,null,null,null,0,""]
["Regionshospitalet Hammel Neurocenter","Skema 6.20: Forsikringer/erstatninger",null,null,null,null,0,""]
["Regionshospitalet Hammel Neurocenter","Skema 6.21: Vederlagsfri Lab. –ydelser og andre ydelser til praksissektoren",null,null,null,null,0,""]
["Regionshospitalet Hammel Neurocenter","Skema 6.22: Patienttransport",null,null,null,null,0,""]
["Regionshospitalet Hammel Neurocenter","Skema 6.23: Serviceydelser til/fra andre institutioner eller sygehuse udenfor regionen",null,null,null,null,0,""]
["Regionshospitalet Hammel Neurocenter","Skema 6.24: Udgifter til eksternt finansierede forskning",null,null,null,null,0,""]
["Regionshospitalet Hammel Neurocenter","Skema 6.25: Forebyggelse rettet mod praksissektoren og kommuner",null,null,null,null,0,""]
["Regionshospitalet Hammel Neurocenter","Skema 6.26: Praksisreservelæger",null,null,null,null,0,""]
["Regionshospitalet Hammel Neurocenter","Skema 6.27: Præhospital",null,null,null,null,0,""]
["Regionshospitalet Hammel Neurocenter","Skema 6.28: Udgifter til Danske Regioner (Kontigent, MedCom, Fællesproj.)",null,null,null,null,0,""]
["Regionshospitalet Hammel Neurocenter","Skema 6.29: Hospice",null,null,null,null,0,""]
["Regionshospitalet Hammel Neurocenter","Skema 6.30: Konsulenter(Praksis)",null,null,null,null,0,""]
["Regionshospitalet Hammel Neurocenter","Skema 6.31: Videnskabsetisk Komité",null,null,null,null,0,""]
["Regionshospitalet Hammel Neurocenter","Skema 6.32: Tolkebistand",null,null,null,null,0,""]
["Regionshospitalet Hammel Neurocenter","Skema 6.33: Dansk Center for Partikelterapi",null,null,null,null,0,""]
["Regionshospitalet Hammel Neurocenter","Skema 6.34: Politisk organisation – overførte udgifter fra funktion 4.10.01, 4.10.02 og 4.10.04",null,null,null,null,0,""]
["Regionshospitalet Hammel Neurocenter","Skema 6.35: Øvrige udgifter, Region Sjælland",null,null,null,null,0,""]
["Regionshospitalet Hammel Neurocenter","Skema 6.36: Sundhedsydelser ifm. specialsektor",null,null,null,null,0,""]
["Regionshospitalet Hammel Neurocenter","Skema 6.37: Udgifter til primær sundhed fra skema 2",null,null,null,null,0,""]
["Regionshospitalet Hammel Neurocenter","Skema 6.38: Udgifter til primær sundhed fra skema 3",null,null,null,null,0,""]
["Regionshospitalet Hammel Neurocenter","Skema 6.39: Særlige udgifter ifm. COVID-19",null,null,null,null,0,""]
["Regionshospitalet Hammel Neurocenter","Skema 6.40: Udleveret udstyr/tilbehør ifm. cochlear implantater",null,null,null,null,0,""]
["Regionshospitalet Hammel Neurocenter","Skema 6.41: Luxturna-behandling, Rigshospitalet",null,null,null,null,0,""]
["Regionshospitalet Hammel Neurocenter","Skema 6.42: Udleveret medicin",null,null,null,null,0,""]
["Regionshospitalet Hammel Neurocenter","Skema 6.43: Udgifter ifm. sundhedsklynger",null,null,null,null,0,""]
["Regionshospitalet Hammel Neurocenter","Skema 6.44: Ukrainske patienter under særlov eller asyl",null,null,null,null,0,""]
["Regionshospitalet Hammel Neurocenter","Skema 6.45: Udgifter ifm. de særlige pladser i psykiatrien",null,null,null,null,0,""]
["Regionshospitalet Hammel Neurocenter","Skema 6.46: Sikringsafdelingen, Region Sjælland",null,null,null,null,0,""]
["Regionshospitalet Hammel Neurocenter","Skema 6.47: Øvrige (Kan kun benyttes efter aftale med Sundhedsdatastyrelsen)",null,null,null,null,0,""]
["Regionshospitalet Hammel Neurocenter","Lukkede poster (må kun bruges af Sundhedsdatastyrelsen)",null,null,null,null,0,""]
["Regionshospitalet Hammel Neurocenter","I alt",{"$f":"SUMIFS((C7:C304),(A7:A304),A305)","v":0},{"$f":"SUMIFS((D7:D304),(A7:A304),A305)","v":0},{"$f":"SUMIFS((E7:E304),(A7:A304),A305)","v":0},{"$f":"SUMIFS((F7:F304),(A7:A304),A305)","v":0},0,""]
["Øvrige i Region Midtjylland",null,null,null,null,null,0,""]
["Øvrige i Region Midtjylland","Skema 6.1: Center for voldsramte (Bispebjerg)",null,null,null,null,0,""]
["Øvrige i Region Midtjylland","Skema 6.2: Ventilatørbistand i hjemmet, respiratorpatienter",null,null,null,null,0,""]
["Øvrige i Region Midtjylland","Skema 6.3: Blodprøvetagning i eget hjem",null,null,null,null,0,""]
["Øvrige i Region Midtjylland","Skema 6.4: Psykinfo + pårørende",null,null,null,null,0,""]
["Øvrige i Region Midtjylland","Skema 6.5: Leveret udstyr til patienter i eget hjem, ilt og sonderemedier",null,null,null,null,0,""]
["Øvrige i Region Midtjylland","Skema 6.6: Montebello (Nordsjællands Hospitaler)",null,null,null,null,0,""]
["Øvrige i Region Midtjylland","Skema 6.7: Satspulje korrektioner mellem år",null,null,null,null,0,""]
["Øvrige i Region Midtjylland","Skema 6.8: Klinisk farmakologisk rådgivning af praksissektoren",null,null,null,null,0,""]
["Øvrige i Region Midtjylland","Skema 6.9: Tandregulering ifm. operation",null,null,null,null,0,""]
["Øvrige i Region Midtjylland","Skema 6.10: Giftlinjen",null,null,null,null,0,""]
["Øvrige i Region Midtjylland","Skema 6.11: Tjenestemandspensioner",null,null,null,null,0,""]
["Øvrige i Region Midtjylland","Skema 6.12: Art 4.6 Betalinger til staten",null,null,null,null,0,""]
["Øvrige i Region Midtjylland","Skema 6.13: Art 4.7 Betalinger til kommuner",null,null,null,null,0,""]
["Øvrige i Region Midtjylland","Skema 6.14: Art 4.8 Betalinger til andre regioner",null,null,null,null,0,""]
["Øvrige i Region Midtjylland","Skema 6.15: Art 7.6 Betalinger fra staten",null,null,null,null,0,""]
["Øvrige i Region Midtjylland","Skema 6.16: Art 7.7 Betalinger fra kommuner",null,null,null,null,0,""]
["Øvrige i Region Midtjylland","Skema 6.17: Art 7.8 Betalinger fra andre regioner",null,null,null,null,0,""]
["Øvrige i Region Midtjylland","Skema 6.18: Betalinger til selvejende, private og udenlandske sygehuse",null,null,null,null,0,""]
["Øvrige i Region Midtjylland","Skema 6.19: Dækningsafgift/ejendomsskat",null,null,null,null,0,""]
["Øvrige i Region Midtjylland","Skema 6.20: Forsikringer/erstatninger",null,null,null,null,0,""]
["Øvrige i Region Midtjylland","Skema 6.21: Vederlagsfri Lab. –ydelser og andre ydelser til praksissektoren",null,null,null,null,{"$f":"IF(ISERROR(C327- D327)=TRUE,\"\",C327 - D327)","v":0},{"$f":"IF(ISERROR((((C327- D327)/D327)*100)=TRUE),\"\",IF((((C327- D327)/D327)*100)<-7,FIXED(((C327- D327)/D327)*100, 1,TRUE) &\"%\" & \"▼\",IF((((C327- D327)/D327)*100)>7,FIXED(((C327- D327)/D327)*100, 1,TRUE) &\"%\" &\"▲\",FIXED(((C327- D327)/D327)*100, 1,TRUE)&\"%\")))","v":""}]
["Øvrige i Region Midtjylland","Skema 6.22: Patienttransport",null,null,null,null,0,""]
["Øvrige i Region Midtjylland","Skema 6.23: Serviceydelser til/fra andre institutioner eller sygehuse udenfor regionen",null,null,null,null,0,""]
["Øvrige i Region Midtjylland","Skema 6.24: Udgifter til eksternt finansierede forskning",null,null,null,null,0,""]
["Øvrige i Region Midtjylland","Skema 6.25: Forebyggelse rettet mod praksissektoren og kommuner",null,null,null,null,0,""]
["Øvrige i Region Midtjylland","Skema 6.26: Praksisreservelæger",null,null,null,null,0,""]
["Øvrige i Region Midtjylland","Skema 6.27: Præhospital",null,null,null,null,0,""]
["Øvrige i Region Midtjylland","Skema 6.28: Udgifter til Danske Regioner (Kontigent, MedCom, Fællesproj.)",null,null,null,null,0,""]
["Øvrige i Region Midtjylland","Skema 6.29: Hospice",null,null,null,null,0,""]
["Øvrige i Region Midtjylland","Skema 6.30: Konsulenter(Praksis)",null,null,null,null,0,""]
["Øvrige i Region Midtjylland","Skema 6.31: Videnskabsetisk Komité",null,null,null,null,0,""]
["Øvrige i Region Midtjylland","Skema 6.32: Tolkebistand",null,null,null,null,0,""]
["Øvrige i Region Midtjylland","Skema 6.33: Dansk Center for Partikelterapi",null,null,null,null,0,""]
["Øvrige i Region Midtjylland","Skema 6.34: Politisk organisation – overførte udgifter fra funktion 4.10.01, 4.10.02 og 4.10.04",null,null,null,null,0,""]
["Øvrige i Region Midtjylland","Skema 6.35: Øvrige udgifter, Region Sjælland",null,null,null,null,0,""]
["Øvrige i Region Midtjylland","Skema 6.36: Sundhedsydelser ifm. specialsektor",null,null,null,null,0,""]
["Øvrige i Region Midtjylland","Skema 6.37: Udgifter til primær sundhed fra skema 2",null,null,null,null,0,""]
["Øvrige i Region Midtjylland","Skema 6.38: Udgifter til primær sundhed fra skema 3",null,null,null,null,0,""]
["Øvrige i Region Midtjylland","Skema 6.39: Særlige udgifter ifm. COVID-19",null,null,null,null,0,""]
["Øvrige i Region Midtjylland","Skema 6.40: Udleveret udstyr/tilbehør ifm. cochlear implantater",null,null,null,null,0,""]
["Øvrige i Region Midtjylland","Skema 6.41: Luxturna-behandling, Rigshospitalet",null,null,null,null,0,""]
["Øvrige i Region Midtjylland","Skema 6.42: Udleveret medicin",null,null,null,null,0,""]
["Øvrige i Region Midtjylland","Skema 6.43: Udgifter ifm. sundhedsklynger",null,null,null,null,0,""]
["Øvrige i Region Midtjylland","Skema 6.44: Ukrainske patienter under særlov eller asyl",null,null,null,null,0,""]
["Øvrige i Region Midtjylland","Skema 6.45: Udgifter ifm. de særlige pladser i psykiatrien",null,null,null,null,0,""]
["Øvrige i Region Midtjylland","Skema 6.46: Sikringsafdelingen, Region Sjælland",null,null,null,null,0,""]
["Øvrige i Region Midtjylland","Skema 6.47: Øvrige (Kan kun benyttes efter aftale med Sundhedsdatastyrelsen)",null,null,null,null,0,""]
["Øvrige i Region Midtjylland","Lukkede poster (må kun bruges af Sundhedsdatastyrelsen)",null,null,null,null,0,""]
["Øvrige i Region Midtjylland","I alt",{"$f":"SUMIFS((C7:C354),(A7:A354),A355)","v":0},{"$f":"SUMIFS((D7:D354),(A7:A354),A355)","v":0},{"$f":"SUMIFS((E7:E354),(A7:A354),A355)","v":0},{"$f":"SUMIFS((F7:F354),(A7:A354),A355)","v":0},0,""]
["Ikke fordelte udgifter og indtægter",null,null,null,null,null,0,""]
["Ikke fordelte udgifter og indtægter","Skema 6.1: Center for voldsramte (Bispebjerg)",null,null,null,null,0,""]
["Ikke fordelte udgifter og indtægter","Skema 6.2: Ventilatørbistand i hjemmet, respiratorpatienter",297183.13500000001,246316.05799999999,283730.50300000003,311523.19019000098,50867.077000000019,"20,7%▲"]
["Ikke fordelte udgifter og indtægter","Skema 6.3: Blodprøvetagning i eget hjem",-193.46,null,null,null,-193.46,""]
["Ikke fordelte udgifter og indtægter","Skema 6.4: Psykinfo + pårørende",null,null,null,null,0,""]
["Ikke fordelte udgifter og indtægter","Skema 6.5: Leveret udstyr til patienter i eget hjem, ilt og sonderemedier",null,null,null,null,0,""]
["Ikke fordelte udgifter og indtægter","Skema 6.6: Montebello (Nordsjællands Hospitaler)",null,null,null,null,0,""]
["Ikke fordelte udgifter og indtægter","Skema 6.7: Satspulje korrektioner mellem år",null,null,null,null,0,""]
["Ikke fordelte udgifter og indtægter","Skema 6.8: Klinisk farmakologisk rådgivning af praksissektoren",null,null,null,null,0,""]
["Ikke fordelte udgifter og indtægter","Skema 6.9: Tandregulering ifm. operation",null,null,null,null,0,""]
["Ikke fordelte udgifter og indtægter","Skema 6.10: Giftlinjen",null,null,null,null,0,""]
["Ikke fordelte udgifter og indtægter","Skema 6.11: Tjenestemandspensioner",138349.019,135057.625,132908.78200000001,131477.96059879099,3291.3940000000002,"2,4%"]
["Ikke fordelte udgifter og indtægter","Skema 6.12: Art 4.6 Betalinger til staten",null,null,null,null,0,""]
["Ikke fordelte udgifter og indtægter","Skema 6.13: Art 4.7 Betalinger til kommuner",null,null,null,0,0,""]
["Ikke fordelte udgifter og indtægter","Skema 6.14: Art 4.8 Betalinger til andre regioner",317482.87,371235.82199999999,235574.454,338432.52594999998,-53752.95199999999,"-14,5%▼"]
["Ikke fordelte udgifter og indtægter","Skema 6.15: Art 7.6 Betalinger fra staten",null,null,null,null,0,""]
["Ikke fordelte udgifter og indtægter","Skema 6.16: Art 7.7 Betalinger fra kommuner",-6194.2950000000001,-3131.5949999999998,-3091.8040000000001,-1558.5060000000001,-3062.7000000000003,"97,8%▲"]
["Ikke fordelte udgifter og indtægter","Skema 6.17: Art 7.8 Betalinger fra andre regioner",-2626.768,-1101.973,-938.08100000000002,-79644.895000000004,-1524.7950000000001,"138,4%▲"]
["Ikke fordelte udgifter og indtægter","Skema 6.18: Betalinger til selvejende, private og udenlandske sygehuse",474819.88699999999,398652.16700000002,337587.05900000001,227320.733529997,76167.719999999972,"19,1%▲"]
["Ikke fordelte udgifter og indtægter","Skema 6.19: Dækningsafgift/ejendomsskat",44017.317000000003,9077.6759999999995,6193.5370000000003,-29398.60356,34939.641000000003,"384,9%▲"]
["Ikke fordelte udgifter og indtægter","Skema 6.20: Forsikringer/erstatninger",225242.587,212133.93100000001,364164.88299999997,387969.235093739,13108.655999999988,"6,2%"]
["Ikke fordelte udgifter og indtægter","Skema 6.21: Vederlagsfri Lab. –ydelser og andre ydelser til praksissektoren",null,null,null,null,0,""]
["Ikke fordelte udgifter og indtægter","Skema 6.22: Patienttransport",null,null,null,null,0,""]
["Ikke fordelte udgifter og indtægter","Skema 6.23: Serviceydelser til/fra andre institutioner eller sygehuse udenfor regionen",873.13800000000003,-7558.165,13668.947,1820.80599999988,8431.3029999999999,"-111,6%▼"]
["Ikke fordelte udgifter og indtægter","Skema 6.24: Udgifter til eksternt finansierede forskning",2446.63,1965.68,3391.7759999999998,3128.7240200000001,480.95000000000005,"24,5%▲"]
["Ikke fordelte udgifter og indtægter","Skema 6.25: Forebyggelse rettet mod praksissektoren og kommuner",503.988,-15914.52,-6978.4369999999999,-561.44272999999998,16418.508000000002,"-103,2%▼"]
["Ikke fordelte udgifter og indtægter","Skema 6.26: Praksisreservelæger",90757.047999999995,83204.857999999993,77901.728000000003,74762.053239999994,7552.1900000000023,"9,1%▲"]
["Ikke fordelte udgifter og indtægter","Skema 6.27: Præhospital",-956.17700000000002,1556.0889999999999,1144.7539999999999,1012.54,-2512.2660000000001,"-161,4%▼"]
["Ikke fordelte udgifter og indtægter","Skema 6.28: Udgifter til Danske Regioner (Kontigent, MedCom, Fællesproj.)",140072.122,151022.33499999999,145515.065,102465.084030288,-10950.212999999989,"-7,3%▼"]
["Ikke fordelte udgifter og indtægter","Skema 6.29: Hospice",84738.058000000005,82893.596999999994,77736.536999999997,77175.673639999994,1844.4610000000102,"2,2%"]
["Ikke fordelte udgifter og indtægter","Skema 6.30: Konsulenter(Praksis)",null,null,null,null,0,""]
["Ikke fordelte udgifter og indtægter","Skema 6.31: Videnskabsetisk Komité",1086.008,1060.692,1036.2739999999999,709.98024999999996,25.316000000000031,"2,4%"]
["Ikke fordelte udgifter og indtægter","Skema 6.32: Tolkebistand",-787.66399999999999,-862.05799999999999,-972.21799999999996,-430.46669000000003,74.394000000000005,"-8,6%▼"]
["Ikke fordelte udgifter og indtægter","Skema 6.33: Dansk Center for Partikelterapi",-59251.847000000002,-55574.873,-62022.885999999999,-56067.213000000003,-3676.974000000002,"6,6%"]
["Ikke fordelte udgifter og indtægter","Skema 6.34: Politisk organisation – overførte udgifter fra funktion 4.10.01, 4.10.02 og 4.10.04",10887.698,11298.516,11541.27,9321.6631312741392,-410.8179999999993,"-3,6%"]
["Ikke fordelte udgifter og indtægter","Skema 6.35: Øvrige udgifter, Region Sjælland",null,null,null,null,{"$f":"IF(ISERROR(C391- D391)=TRUE,\"\",C391 - D391)","v":0},{"$f":"IF(ISERROR((((C391- D391)/D391)*100)=TRUE),\"\",IF((((C391- D391)/D391)*100)<-7,FIXED(((C391- D391)/D391)*100, 1,TRUE) &\"%\" & \"▼\",IF((((C391- D391)/D391)*100)>7,FIXED(((C391- D391)/D391)*100, 1,TRUE) &\"%\" &\"▲\",FIXED(((C391- D391)/D391)*100, 1,TRUE)&\"%\")))","v":""}]
["Ikke fordelte udgifter og indtægter","Skema 6.36: Sundhedsydelser ifm. specialsektor",24559.013999999999,15149.244000000001,null,null,9409.7699999999986,"62,1%▲"]
["Ikke fordelte udgifter og indtægter","Skema 6.37: Udgifter til primær sundhed fra skema 2",43401.398000000001,34512.716,34751.887999999999,40470.667940483101,8888.6820000000007,"25,8%▲"]
["Ikke fordelte udgifter og indtægter","Skema 6.38: Udgifter til primær sundhed fra skema 3",36787.868999999999,41438.010999999999,40011.631999999998,42122.281999999999,-4650.1419999999998,"-11,2%▼"]
["Ikke fordelte udgifter og indtægter","Skema 6.39: Særlige udgifter ifm. COVID-19",null,-258027.45,-445589.33299999998,180130.01741999999,258027.45,"-100,0%▼"]
["Ikke fordelte udgifter og indtægter","Skema 6.40: Udleveret udstyr/tilbehør ifm. cochlear implantater",null,null,null,null,0,""]
["Ikke fordelte udgifter og indtægter","Skema 6.41: Luxturna-behandling, Rigshospitalet",null,null,null,null,0,""]
["Ikke fordelte udgifter og indtægter","Skema 6.42: Udleveret medicin",null,null,null,null,0,""]
["Ikke fordelte udgifter og indtægter","Skema 6.43: Udgifter ifm. sundhedsklynger",null,null,null,null,0,""]
["Ikke fordelte udgifter og indtægter","Skema 6.44: Ukrainske patienter under særlov eller asyl",null,null,null,null,0,""]
["Ikke fordelte udgifter og indtægter","Skema 6.45: Udgifter ifm. de særlige pladser i psykiatrien",null,null,null,null,0,""]
["Ikke fordelte udgifter og indtægter","Skema 6.46: Sikringsafdelingen, Region Sjælland",null,null,null,null,0,""]
["Ikke fordelte udgifter og indtægter","Skema 6.47: Øvrige (Kan kun benyttes efter aftale med Sundhedsdatastyrelsen)",null,null,33249.891000000003,84637.526740001194,0,""]
["Ikke fordelte udgifter og indtægter","Lukkede poster (må kun bruges af Sundhedsdatastyrelsen)",null,null,null,null,0,""]
["Ikke fordelte udgifter og indtægter","I alt",{"$f":"SUMIFS((C7:C404),(A7:A404),A405)","v":1863197.5749999995},{"$f":"SUMIFS((D7:D404),(A7:A404),A405)","v":1454404.3829999999},{"$f":"SUMIFS((E7:E404),(A7:A404),A405)","v":1280516.2210000001},{"$f":"SUMIFS((F7:F404),(A7:A404),A405)","v":1846819.5367945742},408793.19199999957,"28,1%▲"]

{"sheet":"Skema 7","index":6,"n_rows":17,"n_cols":13,"rows_kept":17,"cut":false,"hidden":false,"merged":[[4,1,4,2],[1,1,2,8],[4,4,4,5],[4,7,4,8],[4,10,4,11]]}
["Region Midtjylland, somatiske sygehuse."]
[null,"Skema 7: Vederlagsfrie ydelser mellem sygehusene. (1.000 kr.)"]
[]
[]
["Sygehus",2023,null,2023,2022,null,2022,2021,null,2021,2020,null,2020]
[null,"Leverede","Modtagne","Lev. - Mod.","Leverede","Modtagne","Lev. - Mod.","Leverede","Modtagne","Lev. - Mod.","Leverede","Modtagne","Lev. - Mod."]
["Regionshospitalet Horsens",11812.981,32459.97,{"$f":"$B$7-$C$7","v":-20646.989000000001},11761.915000000001,28843.537,{"$f":"$E$7-$F$7","v":-17081.621999999999},15980,25937,{"$f":"$H$7-$I$7","v":-9957},11185,21415,{"$f":"$K$7-$L$7","v":-10230}]
["Regionshospitalet Gødstrup",5062.5,64002.2,{"$f":"$B$8-$C$8","v":-58939.7},0,66110.798999999999,{"$f":"$E$8-$F$8","v":-66110.798999999999},null,73537,{"$f":"$H$8-$I$8","v":-73537},0,32577,{"$f":"$K$8-$L$8","v":-32577}]
["Hospitalsenhed Midt",41419.947999999997,62950.05,{"$f":"$B$9-$C$9","v":-21530.102000000006},47822.184000000001,53225.548999999999,{"$f":"$E$9-$F$9","v":-5403.364999999998},49693,51805,{"$f":"$H$9-$I$9","v":-2112},4700,46512,{"$f":"$K$9-$L$9","v":-41812}]
["Århus Universitetshospital",197790.71599999999,23868.02,{"$f":"$B$10-$C$10","v":173922.696},183361.245,27091.383000000002,{"$f":"$E$10-$F$10","v":156269.86199999999},193268,29949,{"$f":"$H$10-$I$10","v":163319},171667,17649,{"$f":"$K$10-$L$10","v":154018}]
["Regionshospitalet Randers",15239.544,46171.565000000002,{"$f":"$B$11-$C$11","v":-30932.021000000001},15221.299000000001,41516.722000000002,{"$f":"$E$11-$F$11","v":-26295.423000000003},14764,41271,{"$f":"$H$11-$I$11","v":-26507},13845,33584,{"$f":"$K$11-$L$11","v":-19739}]
["Regionshospitalet Hammel Neurocenter",null,null,{"$f":"$B$12-$C$12","v":0},null,null,{"$f":"$E$12-$F$12","v":0},null,null,{"$f":"$H$12-$I$12","v":0},null,null,{"$f":"$K$12-$L$12","v":0}]
["Øvrige i Region Midtjylland",null,null,{"$f":"$B$13-$C$13","v":0},null,null,{"$f":"$E$13-$F$13","v":0},null,null,{"$f":"$H$13-$I$13","v":0},null,null,{"$f":"$K$13-$L$13","v":0}]
["Ikke fordelte udgifter Region Midt, somatik",null,null,{"$f":"$B$14-$C$14","v":0},null,null,{"$f":"$E$14-$F$14","v":0},null,null,{"$f":"$H$14-$I$14","v":0},null,null,{"$f":"$K$14-$L$14","v":0}]
["I alt",{"$f":"SUM(B7:B14)","v":271325.68900000001},{"$f":"SUM(C7:C14)","v":229451.80499999999},{"$f":"SUM(D7:D14)","v":41873.883999999998},{"$f":"SUM(E7:E14)","v":258166.64299999998},216787.99000000002,41378.652999999998,273705,222499,51206,{"$f":"SUM(K7:K14)","v":201397},151737,49660]
[]
["NB: Afstem med psykiatrien"]

{"sheet":"Rapport","index":7,"n_rows":99,"n_cols":6,"rows_kept":99,"cut":false,"hidden":false,"merged":[]}
[]
[null,"Skema 1: Udgifter og indtægter på sygehusene/enhederne, eksklusiv omkostningssted 0001, Fælleskonto. (1.000 kr.)"]
[null,null,2023,2022,2021,2020]
[null,"Hovedart 1: Lønninger",11874006,11931661,11491591.596000001,10651773]
[null,"Hovedart 2: Varekøb",2251743,2317742,2173140.7119999998,2082923]
[null,"Hovedart 4: Tjenesteydelser m.v. ",1817459,2010164,1889023.7150000001,1607058]
[null,"Hovedart 5: Tilskud og overførsler",9138,4100,4012.6059999999998,4050]
[null,"Hovedart 6: Finansudgifter",0,0,0,0]
[null,"Hovedart 7: Indtægter",-2223013,-2112321,-1935458.7949999999,-1855828]
[null,"Hovedart 8: Finansindtægter",0,0,0,0]
[null,"Hovedart 9: Interne udgifter og indtægter",2749590,2715202,2521560.7620000001,2343392]
[null,"I alt",16478923,16866548,16143870.596000001,14833368]
[]
[null,"Skema 2: Fællesudgifter og -indtægter vedrørende sygehusene.\n(1.000 kr.)"]
[null,null,2023,2022,2021,2020]
[null,"Hovedart 1: Lønninger",991258.22,960811,855672.56599999999,796636]
[null,"Hovedart 2: Varekøb",2543697.406,3061203,3114452.7220000001,2809488]
[null,"Hovedart 4: Tjenesteydelser m.v. ",2042012.574,3614745,9221245.9859999996,2385626]
[null,"Hovedart 5: Tilskud og overførsler",222271.63200000001,187682,193589.606,154022]
[null,"Hovedart 6: Finansudgifter",0,0,0,0]
[null,"Hovedart 7: Indtægter",-747314.95600000001,-3265421,-9061630.3239999991,-635784]
[null,"Hovedart 8: Finansindtægter",0,0,0,-658400]
[null,"Hovedart 9: Interne udgifter og indtægter",-2839902.6570000001,-2744421,-2509571.2880000002,-2399391]
[null,"I alt",2212022.219,1814599,1813759.2680000006,2452197]
[]
[null,"Skema 3:Regionale fællesudgifter og -indtægter. (1.000 kr.)"]
[null,null,2023,2022,2021,2020]
[null,"1.70.50: Andel af fællesudgifter",520099.81099999999,527519,478724,475614]
[null,"1.60.40: Andel af central administration af sundhed (til og med 2019)",0,0,0,0]
[null,"1.60.41: Andel af øvrige udgifter og indtægter",36787.868999999999,41438,40012,42122]
[null,"1.50.33: Andel af central administration af sundhed (ekskl. psykiatri)",0,0,0,0]
[null,"1.50.35: Administration af det psykiatriske område (kun central del)",0,0,0,0]
[null,"I alt",556887.67999999993,568957,518736,517736]
[]
[null,"Skema 4: Udgifter og indtægter til og fra psykiatriske afdelinger konteret på somatiske sygehuse. (1.000 kr.)"]
[null,null,2023,2022,2021,2020]
[null,"Korrektion",0,0,0,0]
[null,"Lønudg. på psyk. afd.,somatiske sygehuse",0,0,0,0]
[null,"Øvrige udg. til psyk. afd.,somatiske sygehuse",0,0,0,0]
[null,"I alt",0,0,0,0]
[]
[null,"Skema 5: Leasing- og huslejeudgifter. (1.000 kr.)"]
[null,null,2023,2022,2021,2020]
[null,"Andre udgifter",0,0,0,0]
[null,"Leasing- og lejeudgifter",69147,49843,166344,196444]
[null,"Huslejeudgifter",56322,40620,32960,34360]
[null,"I alt",125469,90463,199304,230804]
[]
[null,"Skema 6: Udgifter til andet end patientbehandling. (1.000 kr.)"]
[null,null,2023,2022,2021,2020]
[null,"Skema 6.1: Center for voldsramte (Bispebjerg)",0,0,0,0]
[null,"Skema 6.2: Ventilatørbistand i hjemmet, respiratorpatienter",298198.13500000001,247349.05799999999,284472.50300000003,312171.19019000098]
[null,"Skema 6.3: Blodprøvetagning i eget hjem",4920.54,5840,4434,5785]
[null,"Skema 6.4: Psykinfo + pårørende",0,0,0,0]
[null,"Skema 6.5: Leveret udstyr til patienter i eget hjem, ilt og sonderemedier",24786,23869,18197,18411]
[null,"Skema 6.6: Montebello (Nordsjællands Hospitaler)",0,0,0,0]
[null,"Skema 6.7: Satspulje korrektioner mellem år",0,0,0,0]
[null,"Skema 6.8: Klinisk farmakologisk rådgivning af praksissektoren",13055,11523,11210,12004]
[null,"Skema 6.9: Tandregulering ifm. operation",2079,2132,2386,2491]
[null,"Skema 6.10: Giftlinjen",0,0,0,0]
[null,"Skema 6.11: Tjenestemandspensioner",138349.019,135057.625,132908.78200000001,131477.96059879099]
[null,"Skema 6.12: Art 4.6 Betalinger til staten",0,0,0,0]
[null,"Skema 6.13: Art 4.7 Betalinger til kommuner",9468,8725,8858,1967]
[null,"Skema 6.14: Art 4.8 Betalinger til andre regioner",631782.87,684869.82199999993,493752.45400000003,545440.52594999992]
[null,"Skema 6.15: Art 7.6 Betalinger fra staten",-15425,-11509,-12733,-20065]
[null,"Skema 6.16: Art 7.7 Betalinger fra kommuner",-25853.294999999998,-21110.595000000001,-22238.804,-16778.506000000001]
[null,"Skema 6.17: Art 7.8 Betalinger fra andre regioner",-1069281.7679999999,-1083783.973,-929771.08100000001,-974172.89500000002]
[null,"Skema 6.18: Betalinger til selvejende, private og udenlandske sygehuse",476954.88699999999,399527.16700000002,333814.05900000001,224901.733529997]
[null,"Skema 6.19: Dækningsafgift/ejendomsskat",101823.31700000001,67492.676000000007,61754.536999999997,25642.39644]
[null,"Skema 6.20: Forsikringer/erstatninger",258523.587,236705.93100000001,399891.88299999997,417865.235093739]
[null,"Skema 6.21: Vederlagsfri Lab. –ydelser og andre ydelser til praksissektoren",335128,320701,300879,299664]
[null,"Skema 6.22: Patienttransport",2398,2564,2978,1787]
[null,"Skema 6.23: Serviceydelser til/fra andre institutioner eller sygehuse udenfor regionen",873.13800000000003,-7558.165,13668.947,1820.80599999988]
[null,"Skema 6.24: Udgifter til eksternt finansierede forskning",32556.63,30972.68,31813.775999999998,24105.724020000001]
[null,"Skema 6.25: Forebyggelse rettet mod praksissektoren og kommuner",8286.9879999999994,4175.4799999999996,4216.5630000000001,12353.557269999999]
[null,"Skema 6.26: Praksisreservelæger",177193.04800000001,166793.85800000001,159086.728,148833.05323999998]
[null,"Skema 6.27: Præhospital",49004.822999999997,52828.089,51789.754000000001,49313.54]
[null,"Skema 6.28: Udgifter til Danske Regioner (Kontigent, MedCom, Fællesproj.)",140072.122,151022.33499999999,145515.065,102465.084030288]
[null,"Skema 6.29: Hospice",86395.058000000005,84512.596999999994,79190.536999999997,78892.673639999994]
[null,"Skema 6.30: Konsulenter(Praksis)",7256,6987,6187,6582]
[null,"Skema 6.31: Videnskabsetisk Komité",1090.008,1086.692,1025.2739999999999,727.98024999999996]
[null,"Skema 6.32: Tolkebistand",5154.3360000000002,3716.942,3682.7820000000002,4156.5333099999998]
[null,"Skema 6.33: Dansk Center for Partikelterapi",-59251.847000000002,64063.127,47528.114000000001,47411.786999999997]
[null,"Skema 6.34: Politisk organisation – overførte udgifter fra funktion 4.10.01, 4.10.02 og 4.10.04",10887.698,11298.516,11541.27,9321.6631312741392]
[null,"Skema 6.35: Øvrige udgifter, Region Sjælland",0,0,0,0]
[null,"Skema 6.36: Sundhedsydelser ifm. specialsektor",24559.013999999999,15149.244000000001,0,0]
[null,"Skema 6.37: Udgifter til primær sundhed fra skema 2",43401.398000000001,34512.716,34751.887999999999,40470.667940483101]
[null,"Skema 6.38: Udgifter til primær sundhed fra skema 3",36787.868999999999,41438.010999999999,40011.631999999998,42122.281999999999]
[null,"Skema 6.39: Særlige udgifter ifm. COVID-19",21729,452411.55,510384.66700000002,679357.01741999993]
[null,"Skema 6.40: Udleveret udstyr/tilbehør ifm. cochlear implantater",1832,1715,1700,0]
[null,"Skema 6.41: Luxturna-behandling, Rigshospitalet",0,0,0,0]
[null,"Skema 6.42: Udleveret medicin",1190679,1064212,968773,0]
[null,"Skema 6.43: Udgifter ifm. sundhedsklynger",0,0,0,0]
[null,"Skema 6.44: Ukrainske patienter under særlov eller asyl",3661,3498,0,0]
[null,"Skema 6.45: Udgifter ifm. de særlige pladser i psykiatrien",0,0,0,0]
[null,"Skema 6.46: Sikringsafdelingen, Region Sjælland",0,0,0,0]
[null,"Skema 6.47: Øvrige (Kan kun benyttes efter aftale med Sundhedsdatastyrelsen)",0,0,42453.891000000003,84637.526740001194]
[null,"Lukkede poster (må kun bruges af Sundhedsdatastyrelsen)",0,0,0,0]
[null,"I alt",2969073.5749999993,3212788.3829999999,3244114.2209999999,2321163.536794574]

{"sheet":"Rapport SGH","index":8,"n_rows":19,"n_cols":9,"rows_kept":19,"cut":false,"hidden":false,"merged":[]}
[2023,"Skema 1","Skema 2","Skema 3","Skema 4","Skema 5","Skema 6","Skema 7","I alt"]
["Regionshospitalet Horsens",1212887,37483,25837,0,3215,85982,-20646.989000000001,{"$f":"SUM(B2:D2)-SUM(E2:H2)","v":1207656.9890000001}]
["Regionshospitalet Gødstrup",2861635,82381,56524,0,16308,269482,-58939.7,{"$f":"SUM(B3:D3)-SUM(E3:H3)","v":2773689.7}]
["Hospitalsenhed Midt",2777177,90832,62475,0,3931,44657,-21530.102000000006,2903426.102]
["Århus Universitetshospital ",8288605,257134,175048,0,54988,628137,173922.696,7863739.3039999995]
["Regionshospitalet Randers",1338619,42030,28972,0,31,77618,-30932.021000000001,1362904.0209999999]
["Regionshospitalet Hammel Neurocenter",0,0,0,0,0,0,0,0]
["Øvrige i Region Midtjylland",0,0,0,0,0,0,0,0]
["Ikke fordelte udgifter og indtægter",0,1702162.219,208031.68,0,46996,1863197.5749999995,0,0.32400000048801303]
[]
[2022]
["Regionshospitalet Horsens",1287525,40698,27759,0,2395,149686,-17081.621999999999,{"$f":"SUM(B12:D12)-SUM(E12:H12)","v":1220982.622}]
["Regionshospitalet Gødstrup",3095162,89933,62467,0,8149,413467,-66110.798999999999,2892056.7990000001]
["Hospitalsenhed Midt",2834116,94112,64809,0,3123,170422,-5403.364999999998,2824895.3650000002]
["Århus Universitetshospital ",8259443,260051,174138,0,35916,863020,156269.86199999999,7638426.1380000003]
["Regionshospitalet Randers",1390302,44038,30301,0,34,161789,-26295.423000000003,1329113.423]
["Regionshospitalet Hammel Neurocenter",0,0,0,0,0,0,0,0]
["Øvrige i Region Midtjylland",0,0,0,0,0,0,0,0]
["Ikke fordelte udgifter og indtægter",0,1285767,209483,0,40846,1454404.3829999999,0,-0.38299999991431832]

{"sheet":"Afstemning af ikke fordelte","index":9,"n_rows":9,"n_cols":2,"rows_kept":9,"cut":false,"hidden":false,"merged":[]}
["Afstemning af Ikke fordelte indtægter- og udgifter"]
["1.000 kr.","2023"]
["Skema 1",0]
["Skema 2",1702162.219]
["Skema 3",208031.68]
["Skema 4",0]
["Skema 5",46996]
["Skema 6",1863197.5749999995]
["1+2+3-4-5-6",{"$f":"+B3+B4+B5-B6-B7-B8","v":0.32400000048801303}]

{"sheet":"Afstemning øvrige region","index":10,"n_rows":9,"n_cols":2,"rows_kept":9,"cut":false,"hidden":false,"merged":[]}
["Afstemning af Øvrige i Region Midtjylland"]
["1.000 kr.","2023"]
["Skema 1",0]
["Skema 2",0]
["Skema 3",0]
["Skema 4",0]
["Skema 5",0]
["Skema 6",0]
["1+2+3-4-5-6",{"$f":"+B3+B4+B5-B6-B7-B8","v":0}]